Workbook

Sheet Introduction
A1: Federal Highway Administration (FHWA)
A2: Safety Performance for Intersection Control Evaluation Tool
A3: Introduction | B3: Overview
A4: The Safety Performance for Intersection Control Evaluation (SPICE) Tool was developed to provide an easy-to-use tool that automates the predictive safety analysis of intersections. This tool will allow analysts conducting Intersection Control Evaluations (ICE) to be equipped with necessary safety information during the decision-making process, without having to research a myriad of crash modification factors (CMFs) and Safety Performance Functions (SPFs) in multiple sources. The SPICE tool will perform a comparative predictive safety analysis of different intersection control strategies. The results – crash frequency and severity for each alternative – will then enable safety performance of alternatives to be considered quantitatively like traffic operations, construction cost, maintenance cost, or other factors. | B4: The SPICE Tool performs safety analysis of at-grade intersection forms/control types and ramp terminal intersections of diamond interchanges. This user-friendly tool requires only data inputs that are readily available to the analyst. In addition, the SPICE tool has an option to conduct planning level analysis, where the tool assumes default values for data inputs that are challenging to obtain in the early stages of a project and/or have a very minor impact on the results. The SPICE tool assumes that certain attributes of the intersection – AADT, facility type, and number of legs – are the same for all alternatives. If they are not, users will be required to use the tool twice to get results. The tool will not allow simultaneous evaluation of at-grade intersections and ramp terminal intersections. For projects where analysis of both intersections and interchanges is needed, users are required use the tool twice to get results.
A5: Worksheets
A6: Project Information: Provide general project information for reference purposes only.
A7: Definitions: Reference sheet with additional information related to inputs for the SPICE tool.
A8: Control Strategy Selection: Choose between At-Grade or Ramp Terminal intersection types to be included in the SPICE analysis.
A9: At-Grade Inputs: SPF and Part C CMF inputs for At-Grade intersections (hidden if Ramp Terminals are being analyzed).
A10: Ramp Terminal Inputs: SPF and Part C CMF inputs for Ramp Terminal intersections (hidden if At-Grade intersections are being analyzed).
A11: Calibration: Input optional override values for SPF calibration factors from locally-developed or updated information.
A12: Results: Summary of opening year and (if applicable) design year and total project life cycle crash frequency and crash severity.
A14: Additional Worksheets: Additional worksheets to support the underlying Macros. Not to be updated by users unless updating future tool versions.
A15: Maintenance | B15: Input Legend
A16: Version: SPICE Tool 3.3 [Changelog] | C16: Required data entry field
A17: Maintained By: TBD | C17: Optional data entry field
A18: Contact Information: TBD | C18: Planning-Level Default Input
A19: Disclaimer | C19: Data entry field not used
A20: Disclaimers may be added, if needed.

Sheet Project Information
A1: Project Information
A2: Provide general project information for reference purposes only.
A3: Project Name:
A4: Intersection:
A5: Agency:
A6: Project Reference:
A7: City:
A8: State:
A9: Date:
A10: Analyst:
A11: Use this button to clear all inputs/outputs and reset the tool to its initial defaults

Sheet Definitions
A1: Definitions | I1: At-Grade AADT Ranges for Traffic Signals and Minor Stops | O1: At-Grade AADT 1 and 2 Lane Roundabouts
A2: Definitions of values and variables required for SPICE analysis. | I2: Rural Two-Lane Highway | O2: Intersection Type | P2: Major Road AADT | R2: Minor Road AADT
A3: User Input Variable | B3: Units | C3: Definition | D3: Applicable Ranges | I3: Intersection Type | J3: Major Road AADT | L3: Minor Road AADT | O3: 1 Circulating Lane | P3: Min | Q3: Max | R3: Min | S3: Max
D4: Range for: | E4: Lower Limit | F4: Upper Limit | J4: Min | K4: Max | L4: Min | M4: Max | O4: 3Leg | P4: 675 | Q4: 17369 | R4: 409 | S4: 14000
A5: Control Strategy Selection | I5: 3ST | J5: 0 | K5: 19500 | L5: 0 | M5: 4300 | O5: 4Leg | P5: 1000 | Q5: 19733 | R5: 280 | S5: 11239
A6: Number of Major Street Lanes | B6: lanes | C6: Number of lanes on the major street (both directions - does not include turn lanes) | D6: - | E6: - | F6: - | I6: 4ST | J6: 0 | K6: 14700 | L6: 0 | M6: 3500 | O6: 2 Circulating Lanes | P6: Min | Q6: Max | R6: Min | S6: Max
A7: At-Grade Intersection Inputs | I7: 3SG | J7: -- | K7: -- | L7: -- | M7: -- | O7: 3Leg | P7: 1000 | Q7: 22050 | R7: 476 | S7: 15108
A8: Major/Minor Road AADT | B8: veh/day | C8: Average annual daily traffic (AADT) volume for the major and minor street approaches (see table for ranges). | D8: See table starting in column I (to the right). | I8: 4SG | J8: 0 | K8: 25200 | L8: 0 | M8: 12500 | O8: 4Leg | P8: 1000 | Q8: 28333 | R8: 390 | S8: 19371
A9: Skew Angle | B9: degrees | C9: Intersecting angle between major street and minor street approaches (hover cursor for graphical representation) | D9: - | E9: - | F9: - | I9: Rural Multilane Highway
A10: Number of Major Street Through Lanes | B10: lanes | C10: Number of through lanes on the major street (both directions - includes shared through lanes) | D10: - | E10: - | F10: - | I10: Intersection Type | J10: Major Road AADT | L10: Minor Road AADT
A11: Number of Minor Street Lanes | B11: lanes | C11: Number of lanes on the minor street (both directions - does not include turn lanes) | D11: - | E11: - | F11: - | J11: Min | K11: Max | L11: Min | M11: Max
A12: Right-turn Channelization | B12: - | C12: An approach is considered to have right-turn channelization when a marked or raised-curb island is present separating the turn from the adjacent movements. A standard exclusive right-turn lane (bay) that does not have this separation is not considered channelized. | D12: - | E12: - | F12: -
A13: Inscribed Circle Diameter | B13: feet | D13: Roundabout | E13: 90 | F13: 160 | I13: 3ST | J13: 0 | K13: 78300 | L13: 0 | M13: 23000
A14: Opening Year Entering AADT | B14: veh/day | D14: Roundabout | E14: See Table in Column O | I14: 4ST | J14: 0 | K14: 78300 | L14: 0 | M14: 7400
A15: Leg has Right-Turn Bypass | B15: yes/no | D15: Roundabout | E15: - | F15: - | I15: 3SG | J15: -- | K15: -- | L15: -- | M15: --
A16: Access Point within 250' of Yield Line | B16: - | D16: Roundabout | E16: 0 | F16: 8 | I16: 4SG | J16: 0 | K16: 43500 | L16: 0 | M16: 18500
A17: Entering Width | B17: feet | D17: Roundabout | E17: 24 | F17: 34 | I17: Urban and Suburban Arterials | O17: At-Grade AADT Ranges for Restricted Crossing U-Turn (RCUT)
A18: Number of Entering Lanes | B18: lanes | C18: Number of lanes entering a leg of the roundabout (hover cursor for graphical representation). | D18: Roundabout | E18: 1 | F18: 2 | I18: Intersection Type | J18: Major Road AADT | L18: Minor Road AADT
A19: Number of Circulating Lanes | B19: lanes | C19: Number of lanes circulating a leg of the roundabout (hover cursor for graphical representation). | D19: Roundabout | E19: 1 | F19: 2 | I19: 2x2 5 or Fewer Lanes | J19: Min | K19: Max | L19: Min | M19: Max | O19: Intersection Type | P19: Major Road AADT | R19: Minor Road AADT
A20: Number of U-Turns | B20: - | C20: Number of U-turns of the RCUT intersection, either 1 or 2. | D20: Signalized RCUT | E20: 1 | F20: 2 | I20: 3ST | J20: 0 | K20: 45700 | L20: 0 | M20: 9300 | P20: Min | Q20: Max | R20: Min | S20: Max
D21: Unsignalized RCUT | E21: 1 | F21: 2 | I21: 4ST | J21: 0 | K21: 46800 | L21: 0 | M21: 5900 | O21: Signalized (3 & 4-leg) | P21: 9700 | Q21: 65500 | R21: 1000 | S21: 18218
A22: Number of Major Road Lanes | B22: lanes | C22: Number of lanes on the major approach of the RCUT. The highest number across both approaches was chosen (e.g. if one approach has 1 lane, and the other has 2, then 2 is chosen as the number of lanes). | D22: Signalized RCUT | E22: 2 | F22: 3 | I22: 3SG | J22: 0 | K22: 58100 | L22: 0 | M22: 16400 | O22: Unsignalized (3 & 4-leg) | P22: 2950 | Q22: 47722 | R22: 40 | S22: 11500
D23: Unsignalized RCUT | E23: - | F23: - | I23: 4SG | J23: 0 | K23: 67700 | L23: 0 | M23: 33400
A24: Number of Minor Road Lanes | B24: lanes | C24: Number of lanes on the minor approach of the RCUT. If the RCUT has two minor approaches, the highest number across both approaches is chosen. | D24: Signalized RCUT | E24: 1 | F24: 3 | I24: 2x2 6+ Lanes | J24: Min | K24: Max | L24: Min | M24: Max
D25: Unsignalized RCUT | E25: - | F25: - | I25: 3ST | J25: 0 | K25: 66800 | L25: 0 | M25: 8600
A26: Total Offset Distance | B26: ft | C26: The total distance between the center of the intersetion and the U-turn locations (e.g. if one approach has 800 ft. offset and the other one has 600 ft., then the total offset distance is 1400 ft.). | D26: Signalized RCUT | E26: 650 | F26: 2675 | I26: 4ST | J26: 0 | K26: 54600 | L26: 0 | M26: 4600
D27: Unsignalized RCUT | E27: 600 | F27: 5575 | I27: 3SG | J27: 0 | K27: 94000 | L27: 0 | M27: 31000
A28: Number of Driveways | B28: - | C28: The number of driveways within the whole footprint (including intersection center, U-turns, and segment between intersection center and U-turns) of the RCUT intersection. | D28: Signalized RCUT | E28: 0 | F28: 10 | I28: 4SG | J28: 0 | K28: 137600 | L28: 0 | M28: 68400
D29: Unsignalized RCUT | E29: 0 | F29: 6 | I29: Intersection Type | J29: Major Road AADT | L29: Minor Road AADT
A30: Total Deceleration Lane Length | B30: ft | C30: The total length of the deceleration lanes before U-turn locations (e.g. if one approach has 400 ft. deceleration lane and the other one has 250 ft., then total deceleration lane length is 650 ft.). | D30: Signalized RCUT | E30: 300 | F30: 2300 | I30: 1x2 | J30: Min | K30: Max | L30: Min | M30: Max
D31: Unsignalized RCUT | E31: 0 | F31: 1525 | I31: 3ST | J31: 0 | K31: 42700 | L31: 0 | M31: 13400
A32: Total Acceleration Lane Length | B32: ft | C32: The maximum length of the deceleration lanes before U-turn locations (e.g. if one approach has 400 ft. deceleration lane and the other one has 250 ft., then 400 ft. is chosen as maximum deceleration lane length). | D32: Signalized RCUT | E32: - | F32: - | I32: 4ST | J32: 0 | K32: 23400 | L32: 0 | M32: 19200
D33: Unsignalized RCUT | E33: 1 | F33: 1600 | I33: 3SG | J33: 0 | K33: 43800 | L33: 0 | M33: 58800
A34: Total Median Width | B34: ft | C34: The total median width of the major approaches (e.g. if one approach has 40 ft. median and the other one has 25 ft., then total median width is 65 ft.). | D34: Signalized RCUT | E34: 0 | F34: 145 | I34: 4SG | J34: 0 | K34: 77000 | L34: 0 | M34: 98900
D35: Unsignalized RCUT | E35: - | F35: - | I35: 1x1 | J35: Min | K35: Max | L35: Min | M35: Max
A36: Maximum Median Width | B36: ft | C36: The maximum median width of the major approaches (e.g. if one approach has 40 ft. median and the other one has 25 ft., then 40 ft. is chosen as maximum median width). | D36: Signalized RCUT | E36: - | F36: - | I36: 3ST | J36: 0 | K36: 16900 | L36: 0 | M36: 11100
D37: Unsignalized RCUT | E37: 0 | F37: 150 | I37: 4ST | J37: 0 | K37: 11000 | L37: 0 | M37: 6800
A38: Number of Left-Turn Lanes From Major Road | B38: lanes | C38: The maximum number of left turn lanes from major approach to minor approach. | D38: Signalized RCUT | E38: 1 | F38: 3 | I38: 3SG | J38: 0 | K38: 20100 | L38: 0 | M38: 7500
A39: Major Road Speed Limit | B39: mph | C39: Major approach speed limit. | D39: Signalized RCUT | E39: 35 | F39: 70 | I39: 4SG | J39: 0 | K39: 24300 | L39: 0 | M39: 16900
A40: Ramp Terminal Intersection Inputs
A41: Crossroad | B41: - | C41: References the major street of the ramp terminal intersection (i.e., the non-ramp terminal legs) | D41: - | E41: - | F41: -
A42: Crossroad AADT - Inside Leg | B42: veh/day | C42: AADT volume of the crossroad leg located between the two ramp terminals of the interchange | D42: Stop-Controlled | E42: 0 | F42: 14000
D43: Signalized | E43: 14000 | F43: 60000
A44: Crossroad AADT - Outside Leg | B44: veh/day | C44: AADT volume of the crossroad leg located outside of the interchange | D44: Stop-Controlled | E44: 0 | F44: 14000
D45: Signalized | E45: 14000 | F45: 60000
A46: Ramp AADT - Exit | B46: veh/day | C46: AADT volume of the exit ramp | D46: Stop-Controlled | E46: 0 | F46: 10000
D47: Signalized | E47: 0 | F47: 31000
A48: Ramp AADT - Entrance | B48: veh/day | C48: AADT volume of the entrance ramp | D48: Stop-Controlled | E48: 0 | F48: 10000
D49: Signalized | E49: 0 | F49: 31000
A50: Exit Ramp Skew Angle | B50: degrees | C50: Skew angle equals 90 minus the intersection angle (in degrees) (hover cursor for graphical representation). | D50: Stop-Controlled | E50: 0 | F50: 70
A51: Presence of Non-Ramp Public Street Leg | B51: yes/no | C51: Any ramp that has a fourth leg that: (1) is a public street serving two-way traffic and (2) intersects with the crossroad at the terminal. At most ramp terminals, the public street leg will be on the opposite side of the crossroad from the exit ramp. | D51: - | E51: - | F51: -
A52: Effective number of lanes serving exit ramp | B52: lanes | C52: Varies depending on exit ramp configuration (hover cursor for graphical representation of nex,eff) | D52: Stop-Controlled | E52: 1 | F52: 2
D53: Signalized | E53: 1 | F53: 4
A54: Median Width | B54: feet | C54: Width of crossroad median measured from near edges of traveled way in both travel directions (hover cursor for graphical representation) | D54: All | E54: 0 | F54: 50
A55: Left-turn lane (bay) Width for crossroad leg | B55: feet | C55: Width of crossroad left-turn lane (hover cursor for graphical representation) | D55: All | E55: 0 | F55: 26
A56: Number of through traffic lanes that oppose the left-turn movement on the inside crossroad leg | B56: lanes | C56: Number of through lanes on crossroad outside leg that oppose crossroad inside leg left-turn movement | D56: - | E56: - | F56: -
A57: ='Ramp Terminal Inputs'!A30 -> Distance (mi) to the adjacent ramp terminal | B57: miles | C57: Distance between subject ramp terminal and adjacent ramp terminal; measured along the crossroad from terminal center to terminal center (mi). | D57: - | E57: - | F57: -
A58: ='Ramp Terminal Inputs'!A31 -> Distance (mi) to the next public street intersection on the outside crossroad leg | B58: miles | C58: Distance between subject ramp terminal and nearest public road intersection in a direction away form freeway; measured along the crossroad form terminal center to intersection center (mi). | D58: - | E58: - | F58: -
A59: Protected operation for crossroad leg | B59: yes/no | C59: "Yes" if a crossroad leg (inside or outside) has protected left-turn operation. "No" if the crossroad leg has permissive or permissive-protected operation

Sheet Control Strategy Selection
A1: Control Strategy Selection and Inputs
A2: Specify the Facility Level Inputs and the Control Strategies to be included in the SPICE Analysis.
A3: Intersection Type | D3: At-Grade Intersections
A4: Analysis Year | D4: Opening and Design Year
A5: Opening Year | E5: =IF(NOT(ISNUMBER(Input_OpenYear)),"Please specify a valid Opening Year","") -> Please specify a valid Opening Year
A6: Design Year | E6: =IF(Input_AnalysisYearType=Label_AnalysisYearType_OpenAndDesign,IF(NOT(ISNUMBER(Input_DesignYear)),"Please specify a valid Design Year",IF(Input_OpenYear>=Input_DesignYear,"The Design Year must be later than the Opening Year","")),"") -> Please specify a valid Design Year
A8: Facility Type | D8: On Urban and Suburban Arterial | E8: For more information on how to determine these values, see the "Definitions" worksheet
A9: Number of Legs | D9: 3-leg
A10: 1-Way/2-Way | D10: 2-way Intersecting 2-way
A11: # of Major Street Lanes (both directions) | D11: 5 or fewer
A12: Major Street Approach Speed | D12: Less than 55 mph
A13: Opening Year - Major Road AADT | E13: =IF(Input_Base_OAADTMajor="", "Please specify a non-zero AADT value","") -> Please specify a non-zero AADT value
A14: Opening Year - Minor Road AADT | E14: =IF(Input_Base_OAADTMinor="", "Please specify a non-zero AADT value","") -> Please specify a non-zero AADT value
A15: Design Year - Major Road AADT | E15: =IF(AND(Input_AnalysisYearType=Label_AnalysisYearType_OpenAndDesign,Input_Base_DAADTMajor=""), "Please specify a non-zero AADT value","") -> Please specify a non-zero AADT value
A16: Design Year - Minor Road AADT | E16: =IF(AND(Input_AnalysisYearType=Label_AnalysisYearType_OpenAndDesign,Input_Base_DAADTMinor=""), "Please specify a non-zero AADT value","") -> Please specify a non-zero AADT value
O17: AADT Within Range?
A18: Control Strategy | B18: Include | D18: Base Intersection | O18: Opening | P18: Design
A19: Traffic Signal | B19: Yes | D19: -- | E19: =IF(NOT(ISNUMBER(K19)),"No SPF Available",IF(O19,"","Opening Year AADT Outside of SPF Development Range")) ->  | G19: =IF(NOT(ISNUMBER(M19)),"No SPF",IF(Input_AnalysisYearType=Label_AnalysisYearType_OpenAndDesign,IF(P19,"","Design Year AADT Outside of SPF Development Range"),"")) ->  | I19: =IF(Input_FacilityType=FacilityType_Label_Rural2Ln,1,IF(Input_FacilityType=FacilityType_Label_RuralMultiLn,2,IF(Input_FacilityType=FacilityType_Label_Urban,IF(Input_1Way2Way=Notes!$A$54,IF(Input_NumMajorLanes=Notes!$A$60,3,4),IF(Input_1Way2Way=Notes!$A$55,5,6))))) -> 3 | J19: =IF(Input_NumLegs=Notes!$A$49,"4","3")&"SG" -> 3SG | K19: =VLOOKUP($J19,IF($I19=6,Range_USA_1x1,IF($I19=5,Range_USA_1x2,IF($I19=4,Range_USA_2x2_6P,IF($I19=3,Range_USA_2x2_5F,IF($I19=2,Range_RML, Range_R2L))))),2,FALSE) -> 0 | L19: =VLOOKUP($J19,IF($I19=6,Range_USA_1x1,IF($I19=5,Range_USA_1x2,IF($I19=4,Range_USA_2x2_6P,IF($I19=3,Range_USA_2x2_5F,IF($I19=2,Range_RML, Range_R2L))))),3,FALSE) -> 58100 | M19: =VLOOKUP($J19,IF($I19=6,Range_USA_1x1,IF($I19=5,Range_USA_1x2,IF($I19=4,Range_USA_2x2_6P,IF($I19=3,Range_USA_2x2_5F,IF($I19=2,Range_RML, Range_R2L))))),4,FALSE) -> 0 | N19: =VLOOKUP($J19,IF($I19=6,Range_USA_1x1,IF($I19=5,Range_USA_1x2,IF($I19=4,Range_USA_2x2_6P,IF($I19=3,Range_USA_2x2_5F,IF($I19=2,Range_RML, Range_R2L))))),5,FALSE) -> 16400 | O19: =AND(Input_Base_OAADTMajor>=K19,Input_Base_OAADTMajor<=L19,Input_Base_OAADTMinor>=M19,Input_Base_OAADTMinor<=N19) -> TRUE | P19: =AND(Input_Base_DAADTMajor>=K19,Input_Base_DAADTMajor<=L19,Input_Base_DAADTMinor>=M19,Input_Base_DAADTMinor<=N19) -> TRUE
A20: Traffic Signal (Alternative Configuration) | B20: Yes | D20: -- | G20: =IF(NOT(ISNUMBER(M20)),"No SPF",IF(Input_AnalysisYearType=Label_AnalysisYearType_OpenAndDesign,IF(P20,"","Design Year AADT Outside of SPF Development Range"),"")) ->  | I20: =IF(Input_FacilityType=FacilityType_Label_Rural2Ln,1,IF(Input_FacilityType=FacilityType_Label_RuralMultiLn,2,IF(Input_FacilityType=FacilityType_Label_Urban,IF(Input_1Way2Way=Notes!$A$54,IF(Input_NumMajorLanes=Notes!$A$60,3,4),IF(Input_1Way2Way=Notes!$A$55,5,6))))) -> 3 | J20: =IF(Input_NumLegs=Notes!$A$49,"4","3")&"SG" -> 3SG | K20: =VLOOKUP($J20,IF($I20=6,Range_USA_1x1,IF($I20=5,Range_USA_1x2,IF($I20=4,Range_USA_2x2_6P,IF($I20=3,Range_USA_2x2_5F,IF($I20=2,Range_RML, Range_R2L))))),2,FALSE) -> 0 | L20: =VLOOKUP($J20,IF($I20=6,Range_USA_1x1,IF($I20=5,Range_USA_1x2,IF($I20=4,Range_USA_2x2_6P,IF($I20=3,Range_USA_2x2_5F,IF($I20=2,Range_RML, Range_R2L))))),3,FALSE) -> 58100 | M20: =VLOOKUP($J20,IF($I20=6,Range_USA_1x1,IF($I20=5,Range_USA_1x2,IF($I20=4,Range_USA_2x2_6P,IF($I20=3,Range_USA_2x2_5F,IF($I20=2,Range_RML, Range_R2L))))),4,FALSE) -> 0 | N20: =VLOOKUP($J20,IF($I20=6,Range_USA_1x1,IF($I20=5,Range_USA_1x2,IF($I20=4,Range_USA_2x2_6P,IF($I20=3,Range_USA_2x2_5F,IF($I20=2,Range_RML, Range_R2L))))),5,FALSE) -> 16400 | O20: =AND(Input_Base_OAADTMajor>=K20,Input_Base_OAADTMajor<=L20,Input_Base_OAADTMinor>=M20,Input_Base_OAADTMinor<=N20) -> TRUE | P20: =AND(Input_Base_DAADTMajor>=K20,Input_Base_DAADTMajor<=L20,Input_Base_DAADTMinor>=M20,Input_Base_DAADTMinor<=N20) -> TRUE
A21: Minor Road Stop | B21: Yes | D21: -- | G21: =IF(NOT(ISNUMBER(M21)),"No SPF",IF(Input_AnalysisYearType=Label_AnalysisYearType_OpenAndDesign,IF(P21,"","Design Year AADT Outside of SPF Development Range"),"")) ->  | I21: =IF(Input_FacilityType=FacilityType_Label_Rural2Ln,1,IF(Input_FacilityType=FacilityType_Label_RuralMultiLn,2,IF(Input_FacilityType=FacilityType_Label_Urban,IF(Input_1Way2Way=Notes!$A$54,IF(Input_NumMajorLanes=Notes!$A$60,3,4),IF(Input_1Way2Way=Notes!$A$55,5,6))))) -> 3 | J21: =IF(Input_NumLegs=Notes!$A$49,"4","3")&"ST" -> 3ST | K21: =VLOOKUP($J21,IF($I21=6,Range_USA_1x1,IF($I21=5,Range_USA_1x2,IF($I21=4,Range_USA_2x2_6P,IF($I21=3,Range_USA_2x2_5F,IF($I21=2,Range_RML, Range_R2L))))),2,FALSE) -> 0 | L21: =VLOOKUP($J21,IF($I21=6,Range_USA_1x1,IF($I21=5,Range_USA_1x2,IF($I21=4,Range_USA_2x2_6P,IF($I21=3,Range_USA_2x2_5F,IF($I21=2,Range_RML, Range_R2L))))),3,FALSE) -> 45700 | M21: =VLOOKUP($J21,IF($I21=6,Range_USA_1x1,IF($I21=5,Range_USA_1x2,IF($I21=4,Range_USA_2x2_6P,IF($I21=3,Range_USA_2x2_5F,IF($I21=2,Range_RML, Range_R2L))))),4,FALSE) -> 0 | N21: =VLOOKUP($J21,IF($I21=6,Range_USA_1x1,IF($I21=5,Range_USA_1x2,IF($I21=4,Range_USA_2x2_6P,IF($I21=3,Range_USA_2x2_5F,IF($I21=2,Range_RML, Range_R2L))))),5,FALSE) -> 9300 | O21: =AND(Input_Base_OAADTMajor>=K21,Input_Base_OAADTMajor<=L21,Input_Base_OAADTMinor>=M21,Input_Base_OAADTMinor<=N21) -> TRUE | P21: =AND(Input_Base_DAADTMajor>=K21,Input_Base_DAADTMajor<=L21,Input_Base_DAADTMinor>=M21,Input_Base_DAADTMinor<=N21) -> TRUE
A22: All Way Stop | B22: Yes | D22: --
A23: 1-Lane Roundabout | B23: Yes | D23: -- | E23: Opening Year AADT Outside of SPF Development Range | G23: =IF(NOT(ISNUMBER(M23)),"No SPF",IF(Input_AnalysisYearType=Label_AnalysisYearType_OpenAndDesign,IF(P23,"","Design Year AADT Outside of SPF Development Range"),"")) -> Design Year AADT Outside of SPF Development Range | I23: =IF(Input_FacilityType=FacilityType_Label_Rural2Ln,1,IF(Input_FacilityType=FacilityType_Label_RuralMultiLn,2,IF(Input_FacilityType=FacilityType_Label_Urban,IF(Input_1Way2Way=Notes!$A$54,IF(Input_NumMajorLanes=Notes!$A$60,3,4),IF(Input_1Way2Way=Notes!$A$55,5,6))))) -> 3 | J23: =IF(Input_NumLegs=Notes!$A$49,"4","3")&"Leg" -> 3Leg | K23: =VLOOKUP($J23,Range_RAB1,2,FALSE) -> 675 | L23: =VLOOKUP($J23,Range_RAB1,3,FALSE) -> 17369 | M23: =VLOOKUP($J23,Range_RAB1,4,FALSE) -> 409 | N23: =VLOOKUP($J23,Range_RAB1,5,FALSE) -> 14000 | O23: =AND(Input_Base_OAADTMajor>=K23,Input_Base_OAADTMajor<=L23,Input_Base_OAADTMinor>=M23,Input_Base_OAADTMinor<=N23) -> FALSE | P23: =AND(Input_Base_DAADTMajor>=K23,Input_Base_DAADTMajor<=L23,Input_Base_DAADTMinor>=M23,Input_Base_DAADTMinor<=N23) -> FALSE
A24: 2-Lane Roundabout | B24: Yes | D24: -- | E24: Opening Year AADT Outside of SPF Development Range | G24: =IF(NOT(ISNUMBER(M24)),"No SPF",IF(Input_AnalysisYearType=Label_AnalysisYearType_OpenAndDesign,IF(P24,"","Design Year AADT Outside of SPF Development Range"),"")) -> Design Year AADT Outside of SPF Development Range | I24: =IF(Input_FacilityType=FacilityType_Label_Rural2Ln,1,IF(Input_FacilityType=FacilityType_Label_RuralMultiLn,2,IF(Input_FacilityType=FacilityType_Label_Urban,IF(Input_1Way2Way=Notes!$A$54,IF(Input_NumMajorLanes=Notes!$A$60,3,4),IF(Input_1Way2Way=Notes!$A$55,5,6))))) -> 3 | J24: =IF(Input_NumLegs=Notes!$A$49,"4","3")&"Leg" -> 3Leg | K24: =VLOOKUP($J24,Range_RAB2,2,FALSE) -> 1000 | L24: =VLOOKUP($J24,Range_RAB2,3,FALSE) -> 22050 | M24: =VLOOKUP($J24,Range_RAB2,4,FALSE) -> 476 | N24: =VLOOKUP($J24,Range_RAB2,5,FALSE) -> 15108 | O24: =AND(Input_Base_OAADTMajor>=K24,Input_Base_OAADTMajor<=L24,Input_Base_OAADTMinor>=M24,Input_Base_OAADTMinor<=N24) -> FALSE | P24: =AND(Input_Base_DAADTMajor>=K24,Input_Base_DAADTMajor<=L24,Input_Base_DAADTMinor>=M24,Input_Base_DAADTMinor<=N24) -> FALSE
A25: Displaced Left Turn (DLT) | B25: Yes | D25: Traffic Signal
A26: Median U-Turn (MUT) | B26: Yes | D26: Traffic Signal
A27: Signalized Restricted Crossing U-Turn (RCUT) | B27: Yes | D27: -- | E27: =IF(NOT(ISNUMBER(K27)),"No SPF Available",IF(NOT(O27),"Opening Year AADT Outside of SPF Development Range", IF(NOT(AND(Range_SRCUT_OAADT_Ratio)),"Open Major/Minor AADT Ratio Outside of SPF Development Range",""))) -> Opening Year AADT Outside of SPF Development Range | G27: =IF(NOT(ISNUMBER(M27)),"No SPF",IF(Input_AnalysisYearType=Label_AnalysisYearType_OpenAndDesign,IF(NOT(P27),"Design Year AADT Outside of SPF Development Range",IF(NOT(AND(Range_SRCUT_DAADT_Ratio)),"Design Major/Minor AADT Ratio Outside of SPF Development Range","")),"")) -> Design Year AADT Outside of SPF Development Range | K27: =Definitions!P21 -> 9700 | L27: =Definitions!Q21 -> 65500 | M27: =Definitions!R21 -> 1000 | N27: =Definitions!S21 -> 18218 | O27: =AND(Input_Base_OAADTMajor>=K27,Input_Base_OAADTMajor<=L27,Input_Base_OAADTMinor>=M27,Input_Base_OAADTMinor<=N27) -> FALSE | P27: =AND(Input_Base_DAADTMajor>=K27,Input_Base_DAADTMajor<=L27,Input_Base_DAADTMinor>=M27,Input_Base_DAADTMinor<=N27) -> FALSE
A28: Unsignalized Restricted Crossing U-Turn (RCUT) | B28: Yes | D28: -- | E28: =IF(NOT(ISNUMBER(K28)),"No SPF Available",IF(O28,"","Opening Year AADT Outside of SPF Development Range")) -> Opening Year AADT Outside of SPF Development Range | G28: =IF(NOT(ISNUMBER(M28)),"No SPF",IF(Input_AnalysisYearType=Label_AnalysisYearType_OpenAndDesign,IF(P28,"","Design Year AADT Outside of SPF Development Range"),"")) -> Design Year AADT Outside of SPF Development Range | K28: =Definitions!P22 -> 2950 | L28: =Definitions!Q22 -> 47722 | M28: =Definitions!R22 -> 40 | N28: =Definitions!S22 -> 11500 | O28: =AND(Input_Base_OAADTMajor>=K28,Input_Base_OAADTMajor<=L28,Input_Base_OAADTMinor>=M28,Input_Base_OAADTMinor<=N28) -> FALSE | P28: =AND(Input_Base_DAADTMajor>=K28,Input_Base_DAADTMajor<=L28,Input_Base_DAADTMinor>=M28,Input_Base_DAADTMinor<=N28) -> FALSE
A29: Continuous Green-T Intersection | B29: Yes | D29: Traffic Signal
A30: Jughandle | B30: Yes | D30: Traffic Signal
A31: Other 1 | B31: Yes | D31: Traffic Signal | E31: *Please Select
A32: Other 2 | B32: Yes | D32: Minor Road Stop | E32: *Please Select
A44: Freeway Orientation | D44: North-South
A45: Area Type | D45: Urban
A47: Opening Year AADT | D47: =IF($D$44=Notes!$J$26,"NB","EB") & " Ramp Terminal" -> NB Ramp Terminal | E47: =IF($D$44=Notes!$J$26,"SB","WB") & " Ramp Terminal" -> SB Ramp Terminal
A48: Crossroad - Inside Leg | D48: 10000 | E48: 15000
A49: Crossroad - Outside Leg | D49: 10000 | E49: 15000
A50: Exit Ramp | D50: 4500 | E50: 4500
A51: Entrance Ramp | D51: 3000 | E51: 3000
A52: Design Year AADT | D52: =IF($D$44=Notes!$J$26,"NB","EB") & " Ramp Terminal" -> NB Ramp Terminal | E52: =IF($D$44=Notes!$J$26,"SB","WB") & " Ramp Terminal" -> SB Ramp Terminal
A53: Crossroad - Inside Leg | D53: 30000 | E53: 30000
A54: Crossroad - Outside Leg | D54: 30000 | E54: 30000
A55: Exit Ramp | D55: 5000 | E55: 5000
A56: Entrance Ramp | D56: 3250 | E56: 3250
A59: Ramp Terminal Intersections | K59: XRD IN | M59: XRD Out | O59: EXIT | Q59: ENTR | S59: Terminal 1 | U59: Terminal 2 | W59: AADT Within Range?
A60: Traffic Control (both intersections) | B60: Include | D60: Base Intersection | K60: Min | L60: Max | M60: Min | N60: Max | O60: Min | P60: Max | Q60: Min | R60: Max | S60: Opening | T60: Design | U60: Opening | V60: Design | W60: Opening | X60: Design
A61: Conventional Traffic Signal | B61: Yes | D61: -- | E61: =IF(NOT(ISNUMBER(K61)),"No SPF Available",IF(OR(NOT(IsChecked_RTI_D4TS),W61),"","Opening Year AADT Outside of SPF Development Range")) -> Opening Year AADT Outside of SPF Development Range | G61: =IF(NOT(ISNUMBER(L61)),"No SPF Available",IF(OR(NOT(Input_AnalysisYearType=Label_AnalysisYearType_OpenAndDesign),NOT(IsChecked_RTI_D4TS),X61),"","Design Year AADT Outside of SPF Development Range")) ->  | K61: =Definitions!E43 -> 14000 | L61: =Definitions!F43 -> 60000 | M61: =Definitions!E45 -> 14000 | N61: =Definitions!F45 -> 60000 | O61: =Definitions!E47 -> 0 | P61: =Definitions!F47 -> 31000 | Q61: =Definitions!E49 -> 0 | R61: =Definitions!F49 -> 31000 | S61: =AND(Input_RTI_OAADTIn1>=K61,Input_RTI_OAADTIn1<=L61,Input_RTI_OAADTOut1>=M61,Input_RTI_OAADTOut1<=N61,Input_RTI_OAADTEx1>=O61,Input_RTI_OAADTEx1<=P61,Input_RTI_OAADTEn1>=Q61,Input_RTI_OAADTEn1<=R61) -> FALSE | T61: =AND(Input_RTI_DAADTIn1>=K61,Input_RTI_DAADTIn1<=L61,Input_RTI_DAADTOut1>=M61,Input_RTI_DAADTOut1<=N61,Input_RTI_DAADTEx1>=O61,Input_RTI_DAADTEx1<=P61,Input_RTI_DAADTEn1>=Q61,Input_RTI_DAADTEn1<=R61) -> TRUE | U61: =AND(Input_RTI_OAADTIn2>=K61,Input_RTI_OAADTIn2<=L61,Input_RTI_OAADTOut2>=M61,Input_RTI_OAADTOut2<=N61,Input_RTI_OAADTEx2>=O61,Input_RTI_OAADTEx2<=P61,Input_RTI_OAADTEn2>=Q61,Input_RTI_OAADTEn2<=R61) -> TRUE | V61: =AND(Input_RTI_DAADTIn2>=K61,Input_RTI_DAADTIn2<=L61,Input_RTI_DAADTOut2>=M61,Input_RTI_DAADTOut2<=N61,Input_RTI_DAADTEx2>=O61,Input_RTI_DAADTEx2<=P61,Input_RTI_DAADTEn2>=Q61,Input_RTI_DAADTEn2<=R61) -> TRUE | W61: =AND(S61,U61) -> FALSE | X61: =AND(T61,V61) -> TRUE
A62: Conventional Traffic Signal (Alt) | B62: Yes | D62: -- | E62: =IF(NOT(ISNUMBER(K62)),"No SPF Available",IF(OR(NOT(IsChecked_RTI_D4TSA),W62),"","Opening Year AADT Outside of SPF Development Range")) -> Opening Year AADT Outside of SPF Development Range | G62: =IF(NOT(ISNUMBER(L62)),"No SPF Available",IF(OR(NOT(Input_AnalysisYearType=Label_AnalysisYearType_OpenAndDesign),NOT(IsChecked_RTI_D4TSA),X62),"","Design Year AADT Outside of SPF Development Range")) ->  | K62: =K61 -> 14000 | L62: =L61 -> 60000 | M62: 14000 | N62: 60000 | O62: 0 | P62: 31000 | Q62: 0 | R62: 31000 | S62: =S61 -> FALSE | T62: =T61 -> TRUE | U62: =U61 -> TRUE | V62: =V61 -> TRUE | W62: =W61 -> FALSE | X62: =X61 -> TRUE
A63: Crossover Traffic Signal (of DDI) | B63: Yes | D63: --
A64: Single-Point Diamond Traffic Signal | B64: Yes | D64: -- | E64: (SPF not available until fall)
A65: Minor Road (ramp) Stop | B65: Yes | D65: -- | E65: =IF(NOT(ISNUMBER(K65)),"No SPF Available",IF(OR(NOT(IsChecked_RTI_D4MS),W65),"","Opening Year AADT Outside of SPF Development Range")) -> Opening Year AADT Outside of SPF Development Range | G65: =IF(NOT(ISNUMBER(L65)),"No SPF Available",IF(OR(NOT(Input_AnalysisYearType=Label_AnalysisYearType_OpenAndDesign),NOT(IsChecked_RTI_D4MS),X65),"","Design Year AADT Outside of SPF Development Range")) -> Design Year AADT Outside of SPF Development Range | K65: =Definitions!E42 -> 0 | L65: =Definitions!F42 -> 14000 | M65: =Definitions!E44 -> 0 | N65: =Definitions!F44 -> 14000 | O65: =Definitions!E46 -> 0 | P65: =Definitions!F46 -> 10000 | Q65: =Definitions!E48 -> 0 | R65: =Definitions!F48 -> 10000 | S65: =AND(Input_RTI_OAADTIn1>=K65,Input_RTI_OAADTIn1<=L65,Input_RTI_OAADTOut1>=M65,Input_RTI_OAADTOut1<=N65,Input_RTI_OAADTEx1>=O65,Input_RTI_OAADTEx1<=P65,Input_RTI_OAADTEn1>=Q65,Input_RTI_OAADTEn1<=R65) -> TRUE | T65: =AND(Input_RTI_DAADTIn1>=K65,Input_RTI_DAADTIn1<=L65,Input_RTI_DAADTOut1>=M65,Input_RTI_DAADTOut1<=N65,Input_RTI_DAADTEx1>=O65,Input_RTI_DAADTEx1<=P65,Input_RTI_DAADTEn1>=Q65,Input_RTI_DAADTEn1<=R65) -> FALSE | U65: =AND(Input_RTI_OAADTIn2>=K65,Input_RTI_OAADTIn2<=L65,Input_RTI_OAADTOut2>=M65,Input_RTI_OAADTOut2<=N65,Input_RTI_OAADTEx2>=O65,Input_RTI_OAADTEx2<=P65,Input_RTI_OAADTEn2>=Q65,Input_RTI_OAADTEn2<=R65) -> FALSE | V65: =AND(Input_RTI_DAADTIn2>=K65,Input_RTI_DAADTIn2<=L65,Input_RTI_DAADTOut2>=M65,Input_RTI_DAADTOut2<=N65,Input_RTI_DAADTEx2>=O65,Input_RTI_DAADTEx2<=P65,Input_RTI_DAADTEn2>=Q65,Input_RTI_DAADTEn2<=R65) -> FALSE | W65: =AND(S65,U65) -> FALSE | X65: FALSE
A66: 1-lane Roundabout | B66: Yes | D66: -- | E66: =IF(NOT(ISNUMBER(K66)),"No SPF Available",IF(OR(NOT(IsChecked_RTI_D4MS),W66),"","Opening Year AADT Outside of SPF Development Range")) ->  | G66: =IF(NOT(ISNUMBER(L66)),"No SPF Available",IF(OR(NOT(Input_AnalysisYearType=Label_AnalysisYearType_OpenAndDesign),NOT(IsChecked_RTI_D4MS),X66),"","Design Year AADT Outside of SPF Development Range")) -> Design Year AADT Outside of SPF Development Range | K66: =Definitions!$P$5 -> 1000 | L66: =Definitions!$Q$5 -> 19733 | M66: =Definitions!$P$5 -> 1000 | N66: =Definitions!$Q$5 -> 19733 | O66: =Definitions!$R$5 -> 280 | P66: =Definitions!$S$5 -> 11239 | Q66: =Definitions!$R$5 -> 280 | R66: =Definitions!$S$5 -> 11239 | S66: =AND(Input_RTI_OAADTIn1>=K66,Input_RTI_OAADTIn1<=L66,Input_RTI_OAADTOut1>=M66,Input_RTI_OAADTOut1<=N66,Input_RTI_OAADTEx1>=O66,Input_RTI_OAADTEx1<=P66,Input_RTI_OAADTEn1>=Q66,Input_RTI_OAADTEn1<=R66) -> TRUE | T66: =AND(Input_RTI_DAADTIn1>=K66,Input_RTI_DAADTIn1<=L66,Input_RTI_DAADTOut1>=M66,Input_RTI_DAADTOut1<=N66,Input_RTI_DAADTEx1>=O66,Input_RTI_DAADTEx1<=P66,Input_RTI_DAADTEn1>=Q66,Input_RTI_DAADTEn1<=R66) -> FALSE | U66: =AND(Input_RTI_OAADTIn2>=K66,Input_RTI_OAADTIn2<=L66,Input_RTI_OAADTOut2>=M66,Input_RTI_OAADTOut2<=N66,Input_RTI_OAADTEx2>=O66,Input_RTI_OAADTEx2<=P66,Input_RTI_OAADTEn2>=Q66,Input_RTI_OAADTEn2<=R66) -> TRUE | V66: =AND(Input_RTI_DAADTIn2>=K66,Input_RTI_DAADTIn2<=L66,Input_RTI_DAADTOut2>=M66,Input_RTI_DAADTOut2<=N66,Input_RTI_DAADTEx2>=O66,Input_RTI_DAADTEx2<=P66,Input_RTI_DAADTEn2>=Q66,Input_RTI_DAADTEn2<=R66) -> FALSE | W66: TRUE | X66: FALSE
A67: 2-lane Roundabout | B67: Yes | D67: -- | E67: =IF(NOT(ISNUMBER(K67)),"No SPF Available",IF(OR(NOT(IsChecked_RTI_D4MS),W67),"","Opening Year AADT Outside of SPF Development Range")) ->  | G67: =IF(NOT(ISNUMBER(L67)),"No SPF Available",IF(OR(NOT(Input_AnalysisYearType=Label_AnalysisYearType_OpenAndDesign),NOT(IsChecked_RTI_D4MS),X67),"","Design Year AADT Outside of SPF Development Range")) -> Design Year AADT Outside of SPF Development Range | K67: =Definitions!$P$8 -> 1000 | L67: =Definitions!$Q$8 -> 28333 | M67: =Definitions!$P$8 -> 1000 | N67: =Definitions!$Q$8 -> 28333 | O67: =Definitions!$R$8 -> 390 | P67: =Definitions!$S$8 -> 19371 | Q67: =Definitions!$R$8 -> 390 | R67: =Definitions!$S$8 -> 19371 | S67: =AND(Input_RTI_OAADTIn1>=K67,Input_RTI_OAADTIn1<=L67,Input_RTI_OAADTOut1>=M67,Input_RTI_OAADTOut1<=N67,Input_RTI_OAADTEx1>=O67,Input_RTI_OAADTEx1<=P67,Input_RTI_OAADTEn1>=Q67,Input_RTI_OAADTEn1<=R67) -> TRUE | T67: =AND(Input_RTI_DAADTIn1>=K67,Input_RTI_DAADTIn1<=L67,Input_RTI_DAADTOut1>=M67,Input_RTI_DAADTOut1<=N67,Input_RTI_DAADTEx1>=O67,Input_RTI_DAADTEx1<=P67,Input_RTI_DAADTEn1>=Q67,Input_RTI_DAADTEn1<=R67) -> FALSE | U67: =AND(Input_RTI_OAADTIn2>=K67,Input_RTI_OAADTIn2<=L67,Input_RTI_OAADTOut2>=M67,Input_RTI_OAADTOut2<=N67,Input_RTI_OAADTEx2>=O67,Input_RTI_OAADTEx2<=P67,Input_RTI_OAADTEn2>=Q67,Input_RTI_OAADTEn2<=R67) -> TRUE | V67: =AND(Input_RTI_DAADTIn2>=K67,Input_RTI_DAADTIn2<=L67,Input_RTI_DAADTOut2>=M67,Input_RTI_DAADTOut2<=N67,Input_RTI_DAADTEx2>=O67,Input_RTI_DAADTEx2<=P67,Input_RTI_DAADTEn2>=Q67,Input_RTI_DAADTEn2<=R67) -> FALSE | W67: TRUE | X67: FALSE
A68: Other 1 | B68: Yes | D68: =A61 -> Conventional Traffic Signal | E68: *Please Select
A69: Other 2 | B69: Yes | D69: Minor Road (ramp) Stop | E69: *Please Select

Sheet Ramp Terminal Inputs (hidden)
A1: Ramp Terminal Inputs
A2: Provide inputs needed to compute and apply Part C CMFs.
A3: Alternative | B3: Traffic Signal | D3: Traffic Signal (Alt) | F3: Minor Road (Ramp) Stop | H3: 1-lane Roundabout | J3: 2-lane Roundabout
B4: 4 Leg Terminal w/ Diagonal Ramps (D4) | D4: 4 Leg Terminal w/ Diagonal Ramps (D4) | F4: 4 Leg Terminal w/ Diagonal Ramps (D4) | H4: 4 Leg Terminal w/ Diagonal Ramps (D4) | J4: 4 Leg Terminal w/ Diagonal Ramps (D4)
A5: Ramp Terminal | B5: ='Control Strategy Selection'!$D$47 -> NB Ramp Terminal | C5: ='Control Strategy Selection'!$E$47 -> SB Ramp Terminal | D5: ='Control Strategy Selection'!$D$47 -> NB Ramp Terminal | E5: ='Control Strategy Selection'!$E$47 -> SB Ramp Terminal | F5: ='Control Strategy Selection'!$D$47 -> NB Ramp Terminal | G5: ='Control Strategy Selection'!$E$47 -> SB Ramp Terminal | H5: ='Control Strategy Selection'!$D$47 -> NB Ramp Terminal | I5: ='Control Strategy Selection'!$E$47 -> SB Ramp Terminal | J5: ='Control Strategy Selection'!$D$47 -> NB Ramp Terminal | K5: ='Control Strategy Selection'!$E$47 -> SB Ramp Terminal
A6: ='Control Strategy Selection'!$A$47:$C$47 & " " & 'Control Strategy Selection'!A48:C48 -> Opening Year AADT Crossroad - Inside Leg | B6: =Input_RTI_OAADTIn1 -> 10000 | C6: =Input_RTI_OAADTIn2 -> 15000 | D6: =Input_RTI_OAADTIn1 -> 10000 | E6: =Input_RTI_OAADTIn2 -> 15000 | F6: =Input_RTI_OAADTIn1 -> 10000 | G6: =Input_RTI_OAADTIn2 -> 15000 | H6: =Input_RTI_OAADTIn1 -> 10000 | I6: =Input_RTI_OAADTIn2 -> 15000 | J6: =Input_RTI_OAADTIn1 -> 10000 | K6: =Input_RTI_OAADTIn2 -> 15000
A7: ='Control Strategy Selection'!$A$47:$C$47 & " " & 'Control Strategy Selection'!A49:C49 -> Opening Year AADT Crossroad - Outside Leg | B7: =Input_RTI_OAADTOut1 -> 10000 | C7: =Input_RTI_OAADTOut2 -> 15000 | D7: =Input_RTI_OAADTOut1 -> 10000 | E7: =Input_RTI_OAADTOut2 -> 15000 | F7: =Input_RTI_OAADTOut1 -> 10000 | G7: =Input_RTI_OAADTOut2 -> 15000 | H7: =Input_RTI_OAADTOut1 -> 10000 | I7: =Input_RTI_OAADTOut2 -> 15000 | J7: =Input_RTI_OAADTOut1 -> 10000 | K7: =Input_RTI_OAADTOut2 -> 15000
A8: ='Control Strategy Selection'!$A$47:$C$47 & " " & 'Control Strategy Selection'!A50:C50 -> Opening Year AADT Exit Ramp | B8: =Input_RTI_OAADTEx1 -> 4500 | C8: =Input_RTI_OAADTEx2 -> 4500 | D8: =Input_RTI_OAADTEx1 -> 4500 | E8: =Input_RTI_OAADTEx2 -> 4500 | F8: =Input_RTI_OAADTEx1 -> 4500 | G8: =Input_RTI_OAADTEx2 -> 4500 | H8: =Input_RTI_OAADTEx1 -> 4500 | I8: =Input_RTI_OAADTEx2 -> 4500 | J8: =Input_RTI_OAADTEx1 -> 4500 | K8: =Input_RTI_OAADTEx2 -> 4500
A9: ='Control Strategy Selection'!$A$47:$C$47 & " " & 'Control Strategy Selection'!A51:C51 -> Opening Year AADT Entrance Ramp | B9: =Input_RTI_OAADTEn1 -> 3000 | C9: =Input_RTI_OAADTEn2 -> 3000 | D9: =Input_RTI_OAADTEn1 -> 3000 | E9: =Input_RTI_OAADTEn2 -> 3000 | F9: =Input_RTI_OAADTEn1 -> 3000 | G9: =Input_RTI_OAADTEn2 -> 3000 | H9: =Input_RTI_OAADTEn1 -> 3000 | I9: =Input_RTI_OAADTEn2 -> 3000 | J9: =Input_RTI_OAADTEn1 -> 3000 | K9: =Input_RTI_OAADTEn2 -> 3000
A10: ='Control Strategy Selection'!$A$52:$C$52 & " " & 'Control Strategy Selection'!A53:C53 -> Design Year AADT Crossroad - Inside Leg | B10: =Input_RTI_DAADTIn1 -> 30000 | C10: =Input_RTI_DAADTIn2 -> 30000 | D10: =Input_RTI_DAADTIn1 -> 30000 | E10: =Input_RTI_DAADTIn2 -> 30000 | F10: =Input_RTI_DAADTIn1 -> 30000 | G10: =Input_RTI_DAADTIn2 -> 30000 | H10: =Input_RTI_DAADTIn1 -> 30000 | I10: =Input_RTI_DAADTIn2 -> 30000 | J10: =Input_RTI_DAADTIn1 -> 30000 | K10: =Input_RTI_DAADTIn2 -> 30000
A11: ='Control Strategy Selection'!$A$52:$C$52 & " " & 'Control Strategy Selection'!A54:C54 -> Design Year AADT Crossroad - Outside Leg | B11: =Input_RTI_DAADTOut1 -> 30000 | C11: =Input_RTI_DAADTOut2 -> 30000 | D11: =Input_RTI_DAADTOut1 -> 30000 | E11: =Input_RTI_DAADTOut2 -> 30000 | F11: =Input_RTI_DAADTOut1 -> 30000 | G11: =Input_RTI_DAADTOut2 -> 30000 | H11: =Input_RTI_DAADTOut1 -> 30000 | I11: =Input_RTI_DAADTOut2 -> 30000 | J11: =Input_RTI_DAADTOut1 -> 30000 | K11: =Input_RTI_DAADTOut2 -> 30000
A12: ='Control Strategy Selection'!$A$52:$C$52 & " " & 'Control Strategy Selection'!A55:C55 -> Design Year AADT Exit Ramp | B12: =Input_RTI_DAADTEx1 -> 5000 | C12: =Input_RTI_DAADTEx2 -> 5000 | D12: =Input_RTI_DAADTEx1 -> 5000 | E12: =Input_RTI_DAADTEx2 -> 5000 | F12: =Input_RTI_DAADTEx1 -> 5000 | G12: =Input_RTI_DAADTEx2 -> 5000 | H12: =Input_RTI_DAADTEx1 -> 5000 | I12: =Input_RTI_DAADTEx2 -> 5000 | J12: =Input_RTI_DAADTEx1 -> 5000 | K12: =Input_RTI_DAADTEx2 -> 5000
A13: ='Control Strategy Selection'!$A$52:$C$52 & " " & 'Control Strategy Selection'!A56:C56 -> Design Year AADT Entrance Ramp | B13: =Input_RTI_DAADTEn1 -> 3250 | C13: =Input_RTI_DAADTEn2 -> 3250 | D13: =Input_RTI_DAADTEn1 -> 3250 | E13: =Input_RTI_DAADTEn2 -> 3250 | F13: =Input_RTI_DAADTEn1 -> 3250 | G13: =Input_RTI_DAADTEn2 -> 3250 | H13: =Input_RTI_DAADTEn1 -> 3250 | I13: =Input_RTI_DAADTEn2 -> 3250 | J13: =Input_RTI_DAADTEn1 -> 3250 | K13: =Input_RTI_DAADTEn2 -> 3250
A14: Area Type | B14: =Input_RTI_AreaType -> Urban | D14: =Input_RTI_AreaType -> Urban | F14: =Input_RTI_AreaType -> Urban | H14: =Input_RTI_AreaType -> Urban | J14: =Input_RTI_AreaType -> Urban
A15: Number of Crossroad Lanes | B15: 4 | C15: 4 | D15: 4 | E15: 4 | F15: 4 | G15: 4 | H15: N/A | I15: N/A | J15: N/A | K15: N/A
A16: Number of through traffic lanes that oppose the left-turn movement on the inside crossroad leg | B16: 2 | C16: 2 | D16: 2 | E16: 2 | F16: N/A | G16: N/A | H16: N/A | I16: N/A | J16: N/A | K16: N/A
A17: Number of through traffic lanes that oppose the left-turn movement on the outside crossroad leg | B17: =Input_D4TS_NLxst1-Input_D4TS_NLTOIn1 -> 2 | C17: =Input_D4TS_NLxst2-Input_D4TS_NLTOIn2 -> 2 | D17: =Input_D4TSA_NLxst1-Input_D4TSA_NLTOIn1 -> 2 | E17: =Input_D4TSA_NLxst2-Input_D4TSA_NLTOIn2 -> 2 | F17: N/A | G17: N/A | H17: N/A | I17: N/A | J17: N/A | K17: N/A
A24: CMF Inputs | B24: Part C CMFs Optional For Stage 1 ICE, Required for Stage 2 ICE
A25: Exit Ramp Skew Angle | B25: N/A | C25: N/A | D25: N/A | E25: N/A | F25: 0 | G25: 0
A26: Is a non-ramp public street leg present? | B26: No | C26: No | D26: No | E26: No | F26: N/A | G26: N/A
A27: Exit ramp right turn control | B27: Signal/Stop/yield-controlled | C27: Signal/Stop/yield-controlled | D27: Signal/Stop/yield-controlled | E27: Signal/Stop/yield-controlled | F27: Signal/Stop/yield-controlled | G27: Signal/Stop/yield-controlled
A28: Effective number of lanes serving exit ramp | B28: 1 | C28: 1 | D28: 1 | E28: 1 | F28: 1 | G28: 1
A29: Number of unsignalized driveways on the outside crossroad leg within 250' of the interchange | B29: 0 | C29: 0 | D29: 0 | E29: 0 | F29: N/A | G29: N/A
A30: Distance (mi) to the adjacent ramp terminal | B30: 0.1 | C30: 0.1 | D30: 0.1 | E30: 0.1 | F30: 0.1 | G30: 0.1
A31: Distance (mi) to the next public street intersection on the outside crossroad leg | B31: 0.15 | C31: 0.15 | D31: 0.15 | E31: 0.15 | F31: 0.15 | G31: 0.15
A32: # of unsignalized public street approaches on the outside crossroad leg within 250' (<0.05 mi) of the interchange | B32: 1 | C32: 1 | D32: 1 | E32: 1 | F32: 1 | G32: 1
A33: Median Width (ft) | B33: 12 | C33: 12 | D33: 12 | E33: 12 | F33: 12 | G33: 12
A34: Presence of right-turn lane/bay on "in" leg | B34: N/A | C34: N/A | D34: N/A | E34: N/A | F34: N/A | G34: N/A
A35: Presence of right-turn lane/bay on outside crossroad leg | B35: Yes | C35: Yes | D35: Yes | E35: Yes | F35: Yes | G35: Yes
A36: Presence of left-turn lane/bay on inside crossroad leg | B36: Yes | C36: Yes | D36: Yes | E36: Yes | F36: Yes | G36: Yes
A37: Left-turn lane/bay Width for inside crossroad leg | B37: 12 | C37: 12 | D37: 12 | E37: 12 | F37: 12 | G37: 12
A38: Presence of left-turn lane/bay on outside crossroad leg | B38: N/A | C38: N/A | D38: N/A | E38: N/A | F38: N/A | G38: N/A
A39: Left-turn lane/bay Width for outside crossroad leg | B39: 0 | C39: 0 | D39: 0 | E39: 0 | F39: 0 | G39: 0
A40: Protected Left-turn operation for inside crossroad leg | B40: No | C40: No | D40: No | E40: No | F40: N/A | G40: N/A
A41: Protected Left-turn operation for outside crossroad leg | B41: N/A | C41: N/A | D41: N/A | E41: N/A | F41: N/A | G41: N/A
A42: Right turn channelization for inside crossroad leg | B42: N/A | C42: N/A | D42: N/A | E42: N/A | F42: N/A | G42: N/A
A43: Right turn channelization for outside crossroad leg | B43: No | C43: No | D43: No | E43: No | F43: N/A | G43: N/A
A44: Right turn channelization for exit ramp | B44: No | C44: No | D44: No | E44: No | F44: N/A | G44: N/A
B45: Roundabout CMF Inputs
A46: Inscribed Circle Diameter (ft) | B46: N/A | C46: N/A | D46: N/A | E46: N/A | F46: N/A | G46: N/A | H46: 130 | I46: 130 | J46: 125 | K46: 125
A47: Outbound Only Leg | H47: Yes | I47: Yes | J47: Yes | K47: Yes
A48: Leg 1 (Crossroad Leg - Inside) | H48: Leg 1 (Crossroad Leg - Inside)
A49: Opening Year Entering AADT | H49: ='Control Strategy Selection'!$D$48*0.5 -> 5000 | I49: ='Control Strategy Selection'!$E$48*0.5 -> 7500 | J49: ='Control Strategy Selection'!$D$48*0.5 -> 5000 | K49: ='Control Strategy Selection'!$E$48*0.5 -> 7500
A50: Leg has Right-Turn Bypass | H50: No | I50: No | J50: No | K50: No
A51: # of Access Points within 250' of Yield Line | H51: 0 | I51: 0 | J51: 0 | K51: 0
A52: Entering Width (ft) | H52: 29 | I52: 29 | J52: 29 | K52: 29
A53: # of Entering Lanes | H53: 2 | I53: 2 | J53: 2 | K53: 2
A54: # of Circulating Lanes | H54: 2 | I54: 2 | J54: 2 | K54: 2
A55: Leg 2 (Crossroad Leg - Outside) | H55: Leg 2 (Crossroad Leg - Outside)
A56: Opening Year Entering AADT | H56: ='Control Strategy Selection'!$D$49*0.5 -> 5000 | I56: ='Control Strategy Selection'!$E$49*0.5 -> 7500 | J56: ='Control Strategy Selection'!$D$49*0.5 -> 5000 | K56: ='Control Strategy Selection'!$E$49*0.5 -> 7500
A57: Leg has Right-Turn Bypass | H57: No | I57: No | J57: No | K57: No
A58: # of Access Points within 250' of Yield Line | H58: 0 | I58: 0 | J58: 0 | K58: 0
A59: Entering Width (ft) | H59: 29 | I59: 29 | J59: 29 | K59: 29
A60: # of Entering Lanes | H60: 2 | I60: 2 | J60: 2 | K60: 2
A61: # of Circulating Lanes | H61: 2 | I61: 2 | J61: 2 | K61: 2
A62: Leg 3 (Exit Ramp Inside) | H62: Leg 3 (Exit Ramp Leg)
A63: Opening Year Entering AADT | H63: =('Control Strategy Selection'!$D$50) -> 4500 | I63: =('Control Strategy Selection'!$E$50) -> 4500 | J63: =('Control Strategy Selection'!$D$50) -> 4500 | K63: =('Control Strategy Selection'!$E$50) -> 4500
A64: Leg has Right-Turn Bypass | H64: No | I64: No | J64: No | K64: No
A65: # of Access Points within 250' of Yield Line | H65: 0 | I65: 0 | J65: 0 | K65: 0
A66: Entering Width (ft) | H66: 29 | I66: 29 | J66: 29 | K66: 29
A67: # of Entering Lanes | H67: 2 | I67: 2 | J67: 2 | K67: 2
A68: # of Circulating Lanes | H68: 2 | I68: 2 | J68: 2 | K68: 2

Sheet RTI_Ranges (hidden)
A1: Ramp Terminal Inputs
A2: Provide inputs needed to compute and apply Part C CMFs.
A3: Alternative | B3: Traffic Signal | D3: Traffic Signal (Alt) | F3: Minor Road (Ramp) Stop
B4: 4 Leg Terminal w/ Diagonal Ramps (D4) | D4: 4 Leg Terminal w/ Diagonal Ramps (D4) | F4: 4 Leg Terminal w/ Diagonal Ramps (D4)
A5: Ramp Terminal | B5: NB | C5: SB | D5: NB | E5: SB | F5: NB | G5: SB
A6: Crossroad AADT | B6: 18000 | C6: 17000 | D6: =B6 -> 18000 | E6: =C6 -> 17000 | F6: =B6 -> 18000 | G6: =C6 -> 17000
A7: Ramp AADT | B7: 5000 | C7: 4500 | D7: =B7 -> 5000 | E7: =C7 -> 4500 | F7: =B7 -> 5000 | G7: =C7 -> 4500
A8: Area Type | B8: Urban | D8: =B8 -> Urban | F8: =B8 -> Urban
A9: # of Crossroad Lanes | B9: 2 | C9: 2 | D9: 2 | E9: 2 | F9: 2 | G9: 2 | H9: 2-6 (5,6 Urban only)
A18: Other CMF Inputs | B18: Part C CMFs Optional For Stage 1 ICE, Required for Stage 2 ICE
A19: Crossroad Left Turn Lane Present? | B19: Yes | C19: Yes | D19: Yes | E19: Yes | F19: Yes | G19: Yes
A20: Crossroad Right Turn Lane Present? | B20: Yes | C20: Yes | D20: Yes | E20: Yes | F20: Yes | G20: Yes
A21: Skew Angle | B21: skew | C21: Planning | D21: Double | E21: Not/ Applicable | F21: Include in MRS | G21: Include in MRS
A22: Exit ramp right turn control | B22: mergeRT | C22: Planning | D22: Merge/FF or Signal/Stop/yeild-controlled | E22: Include in TS | F22: Include in MRS | G22: Include in MRS
A23: Effective number of lanes serving exit ramp | B23: nex | C23: Planning | D23: 1-2, see graphic | E23: Include in TS | F23: Include in MRS | G23: Include in MRS
A24: Presence of left-turn bay on "in" leg | B24: i_LTBayIn | C24: Planning | D24: Yes/No (<100 ft?) | E24: Include in TS | F24: Include in MRS | G24: Include in MRS
A25: Presence of left-turn bay on "out" leg | B25: i_LTBayOut | C25: Planning | D25: Yes/No (<100 ft?) | E25: Include in TS | F25: Include in MRS | G25: Include in MRS
A26: Presence of right-turn bay on "in" leg | B26: i_RTBayIn | C26: Planning | D26: Yes/No (<100 ft?) | E26: Include in TS | F26: Include in MRS | G26: Include in MRS
A27: Presence of right-turn bay on "out" leg | B27: i_RTBayOut | C27: Planning | D27: Yes/No (<100 ft?) | E27: Include in TS | F27: Include in MRS | G27: Include in MRS
A28: Number of Stop-controlled public street approaches to the crossroad leg outside of the interchange and within 250 feet of the ramp terminal | B28: n_ps | C28: Planning | D28: Integer | E28: Include in TS | F28: Include in MRS | G28: Include in MRS
A29: Number of Stop-controlled driveways to the crossroad leg outside of the interchange and within 250 feet of the ramp terminal | B29: n_dw | C29: Planning | D29: Integer | E29: Include in TS | F29: Not Applicable | G29: Not Applicable
A30: Distance between subject ramp terminal and adjacent ramp terminal (from terminal center to terminal center) | B30: l_rmp | C30: Planning | D30: Double | E30: Include in TS | F30: Include in MRS | G30: Include in MRS
A31: distance between subject ramp terminal and nearest public road intersection in a direction away form the freeway | B31: l_str | C31: Planning | D31: Double | E31: Include in TS | F31: Include in MRS | G31: Include in MRS
A32: Width of median adjacent to turn lane for crossroad leg | B32: w_m | C32: Planning | D32: Double | E32: Include in TS | F32: Include in MRS | G32: Include in MRS
A33: Left-turn lane width for "in" crossroad leg | B33: w_bkIn | C33: Planning | D33: Double (0.0 if not present) | E33: Include in TS | F33: Include in MRS | G33: Include in MRS
A34: Left-turn lane width for "out" crossroad leg | B34: w_bkOut | C34: Planning | D34: Double (0.0 if not present) | E34: Include in TS | F34: Include in MRS | G34: Include in MRS
A35: Number of through traffic lanes that oppose the left-turn movement on the crossroad leg "in" | B35: n_oppLTIn | C35: Planning | D35: Integer | E35: Include in TS | F35: Not Applicable | G35: Not Applicable
A36: Number of through traffic lanes that oppose the left-turn movement on the crossroad leg "out" | B36: n_oppLTOut | C36: Planning | D36: Integer | E36: Include in TS | F36: Not Applicable | G36: Not Applicable
A37: Protected Left-turn operation indicator for crossroad leg "in" | B37: i_protLTIn | C37: Planning | D37: Boolean | E37: Include in TS | F37: Not Applicable | G37: Not Applicable
A38: Protected Left-turn operation indicator for crossroad leg "out" | B38: i_protLTOut | C38: Planning | D38: Boolean | E38: Include in TS | F38: Not Applicable | G38: Not Applicable
A39: Right turn channelization indicator for crossroad leg "in" | B39: i_crtIn | C39: Planning | D39: Boolean | E39: Include in TS | F39: Not Applicable | G39: Not Applicable
A40: Right turn channelization indicator for crossroad leg "out" | B40: i_crtOut | C40: Planning | D40: Boolean | E40: Include in TS | F40: Not Applicable | G40: Not Applicable
A41: Right turn channelization indicator for exit ramp | B41: i_crtEx | C41: Planning | D41: Boolean | E41: Include in TS | F41: Not Applicable | G41: Not Applicable
A42: Non-ramp public street leg indicator | B42: i_ps | C42: Planning | D42: Boolean | E42: Include in TS | F42: Not Applicable | G42: Not Applicable

Sheet At-Grade Inputs
A1: At-Grade Intersection Inputs
A2: Provide inputs needed to compute and apply Part C CMFs.
D4: Control Strategy
A5: Input | D5: =Label_AGI_TrafficSignal -> Traffic Signal | F5: =Label_AGI_TrafficSignal&" (Alt)" -> Traffic Signal (Alt) | H5: =Label_AGI_MinorStop -> Minor Road Stop | J5: =Label_AGI_AllStop -> All Way Stop | L5: =Label_AGI_1LnRdbt -> 1-lane Roundabout | N5: =Label_AGI_2LnRdbt -> 2-lane Roundabout | P5: =Label_AGI_DLT -> Displaced Left Turn (DLT) | R5: =Label_AGI_MUT -> Median U-Turn (MUT) | T5: =Label_AGI_RCUTSig -> Signalized RCUT | V5: =Label_AGI_RCUTUnsig -> Unsignalized RCUT | X5: =Label_AGI_GreenT -> Continuous Green-T Intersection | Z5: =Label_AGI_Jughandle -> Jughandle
A7: Opening Year Major Road AADT | B7: Optional AADT Overrides | D7: =Input_Base_OAADTMajor -> 0 | F7: =Input_Base_OAADTMajor -> 0 | H7: =Input_Base_OAADTMajor -> 0 | J7: =Input_Base_OAADTMajor -> 0 | L7: =Input_Base_OAADTMajor -> 0 | N7: =Input_Base_OAADTMajor -> 0 | P7: =Input_Base_OAADTMajor -> 0 | R7: =Input_Base_OAADTMajor -> 0 | T7: =Input_Base_OAADTMajor -> 0 | V7: =Input_Base_OAADTMajor -> 0 | X7: =Input_Base_OAADTMajor -> 0 | Z7: =Input_Base_OAADTMajor -> 0 | AB7: All strategies will have the same AADT as the Base Conditions unless overridden by user.
A8: Opening Year Minor Road AADT | D8: =Input_Base_OAADTMinor -> 0 | F8: =Input_Base_OAADTMinor -> 0 | H8: =Input_Base_OAADTMinor -> 0 | J8: =Input_Base_OAADTMinor -> 0 | L8: =Input_Base_OAADTMinor -> 0 | N8: =Input_Base_OAADTMinor -> 0 | P8: =Input_Base_OAADTMinor -> 0 | R8: =Input_Base_OAADTMinor -> 0 | T8: =Input_Base_OAADTMinor -> 0 | V8: =Input_Base_OAADTMinor -> 0 | X8: =Input_Base_OAADTMinor -> 0 | Z8: =Input_Base_OAADTMinor -> 0
A9: Design Year Major Road AADT | D9: =Input_Base_DAADTMajor -> 0 | F9: =Input_Base_DAADTMajor -> 0 | H9: =Input_Base_DAADTMajor -> 0 | J9: =Input_Base_DAADTMajor -> 0 | L9: =Input_Base_DAADTMajor -> 0 | N9: =Input_Base_DAADTMajor -> 0 | P9: =Input_Base_DAADTMajor -> 0 | R9: =Input_Base_DAADTMajor -> 0 | T9: =Input_Base_DAADTMajor -> 0 | V9: =Input_Base_DAADTMajor -> 0 | X9: =Input_Base_DAADTMajor -> 0 | Z9: =Input_Base_DAADTMajor -> 0
A10: Design Year Minor Road AADT | D10: =Input_Base_DAADTMinor -> 0 | F10: =Input_Base_DAADTMinor -> 0 | H10: =Input_Base_DAADTMinor -> 0 | J10: =Input_Base_DAADTMinor -> 0 | L10: =Input_Base_DAADTMinor -> 0 | N10: =Input_Base_DAADTMinor -> 0 | P10: =Input_Base_DAADTMinor -> 0 | R10: =Input_Base_DAADTMinor -> 0 | T10: =Input_Base_DAADTMinor -> 0 | V10: =Input_Base_DAADTMinor -> 0 | X10: =Input_Base_DAADTMinor -> 0 | Z10: =Input_Base_DAADTMinor -> 0
A11: Number of Approaches with Left-Turn Lanes | B11: Additional Required Control Strategy Inputs | D11: 0 | F11: 0 | J11: 0 | AB11: Do not include stop controlled approaches for minor stop
A12: Number of Approaches with Right-Turn Lanes | D12: 0 | F12: 0 | J12: 0
A13: Number of Uncontrolled Approaches with Left-Turn Lanes | H13: 0
A14: Number of Uncontrolled Approaches with Right-Turn Lanes | H14: 0
A15: Keep default values below here for planning-level analysis, override with actual values for full HSM Analysis
B16: Part C CMFS Optional For Stage 1 ICE, Required for Stage 2 ICE
A17: Skew Angle | B17: A yellow cell indicates the value may be used in the SPF computation | D17: N/A | F17: N/A | H17: 0 | J17: N/A | L17: N/A | N17: N/A | P17: CMF - No Inputs Required | R17: CMF - No Inputs Required | T17: Scroll Down for Signalized RCUT SPF Inputs | V17: Scroll Down for Unsignalized RCUT SPF Inputs | X17: CMF - No Inputs Required | Z17: CMF - No Inputs Required | AB17: All yellow cells will be automatically populated by a macro. If users want to do a planning-level analysis, they can leave the automatic inputs as-is
A18: Lighting Present | D18: Yes | F18: Yes | H18: Yes
A19: # of Approaches Permissive LT Signal Phasing | D19: 0 | F19: 0 | H19: N/A | J19: N/A | L19: N/A | N19: N/A
A20: # of Approaches Perm/Prot LT Signal Phasing | D20: 0 | F20: 0
A21: # of Approaches Protected LT Signal Phasing | D21: 0 | F21: 0
A22: Number of Approaches with Right-Turn-on-Red Prohibited | D22: 0 | F22: 0 | H22: N/A | J22: N/A | L22: N/A | N22: N/A
A23: Red Light Cameras Present | D23: No | F23: No | H23: N/A | J23: N/A | L23: N/A | N23: N/A
A24: Number of Major Street Through Lanes | D24: 0 | F24: 0 | H24: N/A | J24: N/A | L24: N/A | N24: N/A
A25: Number of Minor Street Lanes | D25: 0 | F25: 0
A26: # of Major St Approaches w/ Right-Turn Channelization | D26: 0 | F26: 0 | H26: N/A | J26: N/A | L26: N/A | N26: N/A
A27: Number of Approaches with U-Turn Prohibited | D27: 0 | F27: 0 | H27: N/A | J27: N/A | L27: N/A | N27: N/A
A28: Pedestrian Volume by Activity Level | D28: Low (20) | F28: Low (20)
A29: User Specified Sum of all daily pedestrian crossing volumes | D29: 20 | F29: 20 | H29: N/A | J29: N/A | L29: N/A | N29: N/A
A30: Max # of Lanes Crossed by Pedestrians | D30: 5 | F30: 5 | H30: N/A | J30: N/A | L30: N/A | N30: N/A
A31: Number of Bus Stops within 1000' of Intersection | D31: 0 | F31: 0 | H31: =Input_AGI_NumBusStops -> 0 | J31: =Input_AGI_NumBusStops -> 0 | L31: =Input_AGI_NumBusStops -> 0 | N31: =Input_AGI_NumBusStops -> 0
A32: Schools within 1000' of intersection | D32: No | F32: No | H32: =Input_AGI_HasSchool -> No | J32: =Input_AGI_HasSchool -> No | L32: =Input_AGI_HasSchool -> No | N32: =Input_AGI_HasSchool -> No
A33: Number of Alcohol Sales Establishments within 1000' of Intersection | D33: 0 | F33: 0 | H33: =Input_AGI_NumABC -> 0 | J33: =Input_AGI_NumABC -> 0 | L33: =Input_AGI_NumABC -> 0 | N33: =Input_AGI_NumABC -> 0
B34: Roundabout CMF Inputs
A35: Inscribed Circle Diameter (ft) | L35: 130 | N35: 125
A36: Leg 1 (Major Leg #1) | B36: Leg 1 (Major Leg #1)
A37: Opening Year Entering AADT | L37: =('Control Strategy Selection'!D13)*0.5 -> 0 | N37: =('Control Strategy Selection'!D13)*0.5 -> 0
A38: Leg has Right-Turn Bypass | L38: No | N38: No
A39: # of Access Points within 250' of Yield Line | L39: 0 | N39: 0
A40: Entering Width (ft) | L40: 29 | N40: 29
A41: # of Entering Lanes | L41: 2 | N41: 2
A42: # of Circulating Lanes | L42: 2 | N42: 2
A43: Leg 2 (Major Leg #2) | B43: Leg 2 (Major Leg #2)
A44: Opening Year Entering AADT | L44: =('Control Strategy Selection'!$D$13)-Input_AGI_R1_AADT_L1 -> 0 | N44: =('Control Strategy Selection'!$D$13)-Input_AGI_R2_AADT_L1 -> 0
A45: Leg has Right-Turn Bypass | L45: No | N45: No
A46: # of Access Points within 250' of Yield Line | L46: 0 | N46: 0
A47: Entering Width (ft) | L47: 29 | N47: 29
A48: # of Entering Lanes | L48: 2 | N48: 2
A49: # of Circulating Lanes | L49: 2 | N49: 2
A50: Leg 3 (Minor Leg #1) | B50: Leg 3 (Minor Leg #1)
A51: Opening Year Entering AADT | L51: =('Control Strategy Selection'!D14)*0.5 -> 0 | N51: =('Control Strategy Selection'!D14)*0.5 -> 0
A52: Leg has Right-Turn Bypass | L52: No | N52: No
A53: # of Access Points within 250' of Yield Line | L53: 0 | N53: 0
A54: Entering Width (ft) | L54: 29 | N54: 29
A55: # of Entering Lanes | L55: 2 | N55: 2
A56: # of Circulating Lanes | L56: 2 | N56: 2
A57: Leg 4 (Minor Leg #2) | B57: Leg 4 (Minor Leg #2)
A58: Opening Year Entering AADT | L58: =('Control Strategy Selection'!$D$14)-Input_AGI_R1_AADT_L3 -> 0 | N58: =('Control Strategy Selection'!$D$14)-Input_AGI_R2_AADT_L3 -> 0
A59: Leg has Right-Turn Bypass | L59: No | N59: No
A60: # of Access Points within 250' of Yield Line | L60: 0 | N60: 0
A61: Entering Width (ft) | L61: 29 | N61: 29
A62: # of Entering Lanes | L62: 2 | N62: 2
A63: # of Circulating Lanes | L63: 2 | N63: 2
T64: Restricted Crossing U-Turn (RCUT) CMF Inputs
A66: # U-Turns | T66: 2 | V66: 2
A67: # of Major Roadway Lanes | T67: 2
A68: # of Minor Roadway Lanes | T68: 2
A69: Total Offset Distance (ft) | T69: 1250 | V69: 1250
A70: Number of Driveways | T70: 4 | V70: 4
A71: Total Deceleration Lane Length (ft) | T71: 750 | V71: 750
A72: Total Acceleration Lane Length (ft) | V72: 750
A73: Number of Left-Turn Lanes From Major Road | T73: 1
A74: Major Road Speed Limit (mph) | T74: <=50
A75: Total Median Width (ft) | T75: 65
A76: Maximum Median Width (ft) | V76: 40

Sheet Calibration
A1: Calibration
A2: Optional - Input locally-developed calibration factors for SPFs.
A3: At-Grade Intersection SPFs
A4: Traffic Control | B4: Facility Type | C4: # legs | D4: 1 way/ 2 way | E4: # of lanes on arterial | F4: Default Calibration Factor | G4: Optional User Override | I4: Use Value
A6: Traffic Signal (For more information on determining signal type, refer to the "Definitions" worksheet) | B6: On Rural Two Lane Highway | C6: 3 leg | D6: - | E6: - | F6: =CalibrationDefaults!F6 -> 1 | I6: =IF(ISNUMBER(G6),G6,F6) -> 1
C7: 4 leg | D7: - | E7: - | F7: =CalibrationDefaults!F7 -> 0.92 | I7: =IF(ISNUMBER(G7),G7,F7) -> 0.92
B8: On Rural Multilane Highway | C8: 3 leg | D8: - | E8: - | F8: =CalibrationDefaults!F8 -> 1 | I8: 1
C9: 4 leg | D9: - | E9: - | F9: =CalibrationDefaults!F9 -> 0.45 | I9: 0.45
B10: On Urban and Suburban Arterial | C10: 3 leg | D10: 2x2 | E10: 5 or fewer | F10: =CalibrationDefaults!F10 -> 2.5 | I10: 2.5
C11: 4 leg | D11: 2x2 | E11: 5 or fewer | F11: =CalibrationDefaults!F11 -> 2.27 | I11: 2.27
C12: 3 leg | D12: 2x2 | E12: 6 or more | F12: =CalibrationDefaults!F12 -> 1 | I12: 1
C13: 4 leg | D13: 2x2 | E13: 6 or more | F13: =CalibrationDefaults!F13 -> 1 | I13: 1
C14: 3 leg | D14: 1x2 | E14: - | F14: =CalibrationDefaults!F14 -> 1 | I14: 1
C15: 4 leg | D15: 1x2 | E15: - | F15: =CalibrationDefaults!F15 -> 1 | I15: 1
C16: 3 leg | D16: 1x1 | E16: - | F16: =CalibrationDefaults!F16 -> 1 | I16: 1
C17: 4 leg | D17: 1x1 | E17: - | F17: =CalibrationDefaults!F17 -> 1 | I17: 1
B18: On High Speed (50+ MPH) Urban and Suburban Arterial | C18: 3 leg | D18: - | E18: - | F18: =CalibrationDefaults!F18 -> 1 | I18: 1
C19: 4 leg | D19: - | E19: - | F19: =CalibrationDefaults!F19 -> 1 | I19: 1
A20: Minor Road Stop | B20: On Rural Two Lane Highway | C20: 3 leg | D20: - | E20: - | F20: =CalibrationDefaults!F20 -> 1.27 | I20: 1.27
C21: 4 leg | D21: - | E21: - | F21: =CalibrationDefaults!F21 -> 0.74 | I21: 0.74
B22: On Rural Multilane Highway | C22: 3 leg | D22: - | E22: - | F22: =CalibrationDefaults!F22 -> 2.2 | I22: 2.2
C23: 4 leg | D23: - | E23: - | F23: =CalibrationDefaults!F23 -> 1.64 | I23: 1.64
B24: On Urban and Suburban Arterial | C24: 3 leg | D24: 2x2 | E24: 5 or fewer | F24: =CalibrationDefaults!F24 -> 1.14 | I24: 1.14
C25: 4 leg | D25: 2x2 | E25: 5 or fewer | F25: =CalibrationDefaults!F25 -> 1.87 | I25: 1.87
C26: 3 leg | D26: 2x2 | E26: 6 or more | F26: =CalibrationDefaults!F26 -> 1 | I26: 1
C27: 4 leg | D27: 2x2 | E27: 6 or more | F27: =CalibrationDefaults!F27 -> 1 | I27: 1
C28: 3 leg | D28: 1x2 | E28: - | F28: =CalibrationDefaults!F28 -> 1 | I28: 1
C29: 4 leg | D29: 1x2 | E29: - | F29: =CalibrationDefaults!F29 -> 1 | I29: 1
C30: 3 leg | D30: 1x1 | E30: - | F30: =CalibrationDefaults!F30 -> 1 | I30: 1
C31: 4 leg | D31: 1x1 | E31: - | F31: =CalibrationDefaults!F31 -> 1 | I31: 1
B32: On High Speed (50+ MPH) Urban and Suburban Arterial | C32: 3 leg | D32: - | E32: - | F32: =CalibrationDefaults!F32 -> 1 | I32: 1
C33: 4 leg | D33: - | E33: - | F33: =CalibrationDefaults!F33 -> 1 | I33: 1
A34: All-Way Stop | B34: On Rural Two Lane Highway | C34: 3 leg | D34: - | E34: - | F34: =CalibrationDefaults!F34 -> 1 | I34: 1
C35: 4 leg | D35: - | E35: - | F35: =CalibrationDefaults!F35 -> 1 | I35: 1
B36: On Rural Multilane Highway | C36: 3 leg | D36: - | E36: - | F36: =CalibrationDefaults!F36 -> 1 | I36: 1
C37: 4 leg | D37: - | E37: - | F37: =CalibrationDefaults!F37 -> 1 | I37: 1
B38: On Urban and Suburban Arterial | C38: 3 leg | D38: - | E38: - | F38: =CalibrationDefaults!F38 -> 1 | I38: 1
C39: 4 leg | D39: - | E39: - | F39: =CalibrationDefaults!F39 -> 1 | I39: 1
A40: Roundabout | B40: 1-lane roundabout | C40: 3 leg | D40: - | E40: - | F40: =CalibrationDefaults!F40 -> 1 | I40: 1
C41: 4 leg | D41: - | E41: - | F41: =CalibrationDefaults!F41 -> 1 | I41: 1
B42: 2-lane roundabout | C42: 3 leg | D42: - | E42: - | F42: =CalibrationDefaults!F42 -> 1 | I42: 1
C43: 4 leg | D43: - | E43: - | F43: =CalibrationDefaults!F43 -> 1 | I43: 1
A44: Signalized Restricted Crossing U-Turn (RCUT), also known Superstreet | C44: 3 leg | D44: - | E44: - | F44: =CalibrationDefaults!F44 -> 1 | I44: =IF(ISNUMBER(G44),G44,F44) -> 1
C45: 4 leg | D45: - | E45: - | F45: =CalibrationDefaults!F45 -> 1 | I45: 1
A46: Unsignalized Restricted Crossing U-Turn (RCUT), also known as J-Turn | C46: 3 leg | D46: - | E46: - | F46: =CalibrationDefaults!F46 -> 1 | I46: 1
C47: 4 leg | D47: - | E47: - | F47: =CalibrationDefaults!F47 -> 1 | I47: 1
A48: Ramp Terminal Intersection SPFs
A49: Control | B49: Ramp and Intersection Type | F49: SPF Calibration Factor | G49: Optional User Override | I49: Use Value
A51: Conventional Traffic Signal | B51: Four-leg terminals with diagonal ramps (D4) | F51: 1 | I51: 1
A52: Crossover Traffic Signal (of Diverging Diamond Interchange) | B52: All types | F52: 1 | I52: =IF(ISNUMBER(G52),G52,F52) -> 1
A53: Single-Point Diamond Traffic Signal | B53: All types | F53: 1 | I53: 1
A54: Minor Road (Ramp) Stop | B54: Four-leg terminals with diagonal ramps (D4) | F54: 1 | I54: 1
A55: Roundabout | B55: 1-lane roundabout with 4 legs | F55: 1 | I55: 1
B56: 2-lane roundabout with 4 legs | F56: 1 | I56: 1
A57: Local CMFs
A58: Optional - Override default CMFs with locally-developed or new CMFs
A59: Control | C59: Default Base Intersection | E59: Type of Crashes | F59: Default CMF | G59: Optional User Override | I59: Use Value
A60: Displaced Left Turn (DLT) | C60: Traffic Signal | E60: Total | F60: 0.88 | I60: =IF(ISNUMBER(G60),G60,F60) -> 0.88
E61: Fatal-Injury | F61: 0.88 | I61: =IF(ISNUMBER(G61),G61,F61) -> 0.88
A62: Median U-Turn (MUT) | C62: Traffic Signal | E62: Total | F62: 0.85 | I62: 0.85
E63: Fatal-Injury | F63: 0.7 | I63: 0.7
A64: Signalized Restricted Crossing U-Turn (RCUT), also known Superstreet | C64: Traffic Signal | E64: Total | F64: 0.85 | I64: 0.85
E65: Fatal-Injury | F65: 0.78 | I65: 0.78
A66: Unsignalized Restricted Crossing U-Turn (RCUT), also known as J-Turn | C66: Minor Road Stop (TWSC) | E66: Total | F66: 0.65 | I66: 0.65
E67: Fatal-Injury | F67: 0.46 | I67: 0.46
A68: Continuous Green-T Intersection | C68: Traffic Signal | E68: Total | F68: 0.96 | I68: 0.96
E69: Fatal-Injury | F69: 0.85 | I69: 0.85
A70: Jughandles | C70: Traffic Signal | E70: Total | F70: 0.74 | I70: 0.74
E71: Fatal-Injury | F71: 0.74 | I71: 0.74
A72: =Label_AGI_Other1 -> Other 1 | C72: User Selection | E72: Total | F72: 1 | I72: =IF(ISNUMBER(G72),G72,F72) -> 1
E73: Fatal-Injury | F73: 1 | I73: 1
A74: =Label_AGI_Other2 -> Other 2 | C74: User Selection | E74: Total | F74: 1 | I74: 1
E75: Fatal-Injury | F75: 1 | I75: 1
A76: Crossover Traffic Signal (of Diverging Diamond Interchange) | C76: Traffic Signal | E76: Total | F76: 0.67 | I76: =IF(ISNUMBER(G76),G76,F76) -> 0.67
E77: Fatal-Injury | F77: 0.59 | I77: =IF(ISNUMBER(G77),G77,F77) -> 0.59

Sheet ExistingData (hidden)
A3: Intersetion Type | B3: Traffic Signal or Minor Road Stop
A4: Years of Data | B4: 5
I5: 1 | J5: Predicted | K5: Based on SPF only
I6: 2 | J6: Expected | K6: Based on SPF w/ EB applied
B7: Total | C7: FI | D7: PDO | E7: Ped | I7: 3 | J7: Observed | K7: Historical crash data
A8: Historical Crashes Year 1
A9: Historical Crashes Year 2
A10: Historical Crashes Year 3
A11: Historical Crashes Year 4
A12: Historical Crashes Year 5
A14: Historical Crash Data (Sum Over All Years) | B14: 35 | C14: 7 | D14: 28 | E14: 1
A15: Average Crashes (per year) | B15: =B14/$B$4 -> 7 | C15: =C14/$B$4 -> 1.4 | D15: 5.6 | E15: 0.2

Sheet CalibrationDefaults (hidden)
A1: Default Calibration ReferenceCalibration
A2: At-Grade Intersection SPFs
A3: Select From the Dropdown Menu: | C3: FDOT
A4: Traffic Control | B4: Facility Type | C4: # legs | D4: 1 way/ 2 way | E4: # of lanes on arterial | F4: Use Value | G4: Empty | H4: FDOT | I4: Future1 | J4: Future2 | K4: Future3
A6: Traffic Signal (For more information on determining signal type, refer to the "Definitions" worksheet) | B6: On Rural Two Lane Highway | C6: 3 leg | D6: - | E6: - | F6: =IF(ISNUMBER(IF($C$3=$G$4,G6,IF($C$3=$H$4,H6,IF($C$3=$I$4,I6,IF($C$3=$J$4,J6,IF($C$3=$K$4,K6,1)))))),IF($C$3=$G$4,G6,IF($C$3=$H$4,H6,IF($C$3=$I$4,I6,IF($C$3=$J$4,J6,IF($C$3=$K$4,K6,1))))),1) -> 1 | G6: 1 | H6: -- | I6: 1 | J6: 1 | K6: 1
C7: 4 leg | D7: - | E7: - | F7: =IF(ISNUMBER(IF($C$3=$G$4,G7,IF($C$3=$H$4,H7,IF($C$3=$I$4,I7,IF($C$3=$J$4,J7,IF($C$3=$K$4,K7,1)))))),IF($C$3=$G$4,G7,IF($C$3=$H$4,H7,IF($C$3=$I$4,I7,IF($C$3=$J$4,J7,IF($C$3=$K$4,K7,1))))),1) -> 0.92 | G7: 1 | H7: 0.92 | I7: 1 | J7: 1 | K7: 1
B8: On Rural Multilane Highway | C8: 3 leg | D8: - | E8: - | F8: 1 | G8: 1 | H8: -- | I8: 1 | J8: 1 | K8: 1
C9: 4 leg | D9: - | E9: - | F9: 0.45 | G9: 1 | H9: 0.45 | I9: 1 | J9: 1 | K9: 1
B10: On Urban and Suburban Arterial | C10: 3 leg | D10: 2x2 | E10: 5 or fewer | F10: 2.5 | G10: 1 | H10: 2.5 | I10: 1 | J10: 1 | K10: 1
C11: 4 leg | D11: 2x2 | E11: 5 or fewer | F11: 2.27 | G11: 1 | H11: 2.27 | I11: 1 | J11: 1 | K11: 1
C12: 3 leg | D12: 2x2 | E12: 6 or more | F12: 1 | G12: 1 | H12: -- | I12: 1 | J12: 1 | K12: 1
C13: 4 leg | D13: 2x2 | E13: 6 or more | F13: 1 | G13: 1 | H13: -- | I13: 1 | J13: 1 | K13: 1
C14: 3 leg | D14: 1x2 | E14: - | F14: 1 | G14: 1 | H14: -- | I14: 1 | J14: 1 | K14: 1
C15: 4 leg | D15: 1x2 | E15: - | F15: 1 | G15: 1 | H15: -- | I15: 1 | J15: 1 | K15: 1
C16: 3 leg | D16: 1x1 | E16: - | F16: 1 | G16: 1 | H16: -- | I16: 1 | J16: 1 | K16: 1
C17: 4 leg | D17: 1x1 | E17: - | F17: 1 | G17: 1 | H17: -- | I17: 1 | J17: 1 | K17: 1
B18: On High Speed (50+ MPH) Urban and Suburban Arterial | C18: 3 leg | D18: - | E18: - | F18: 1 | G18: 1 | H18: -- | I18: 1 | J18: 1 | K18: 1
C19: 4 leg | D19: - | E19: - | F19: 1 | G19: 1 | H19: -- | I19: 1 | J19: 1 | K19: 1
A20: Minor Road Stop | B20: On Rural Two Lane Highway | C20: 3 leg | D20: - | E20: - | F20: 1.27 | G20: 1 | H20: 1.27 | I20: 1 | J20: 1 | K20: 1
C21: 4 leg | D21: - | E21: - | F21: 0.74 | G21: 1 | H21: 0.74 | I21: 1 | J21: 1 | K21: 1
B22: On Rural Multilane Highway | C22: 3 leg | D22: - | E22: - | F22: 2.2 | G22: 1 | H22: 2.2 | I22: 1 | J22: 1 | K22: 1
C23: 4 leg | D23: - | E23: - | F23: 1.64 | G23: 1 | H23: 1.64 | I23: 1 | J23: 1 | K23: 1
B24: On Urban and Suburban Arterial | C24: 3 leg | D24: 2x2 | E24: 5 or fewer | F24: 1.14 | G24: 1 | H24: 1.14 | I24: 1 | J24: 1 | K24: 1
C25: 4 leg | D25: 2x2 | E25: 5 or fewer | F25: 1.87 | G25: 1 | H25: 1.87 | I25: 1 | J25: 1 | K25: 1
C26: 3 leg | D26: 2x2 | E26: 6 or more | F26: 1 | G26: 1 | H26: -- | I26: 1 | J26: 1 | K26: 1
C27: 4 leg | D27: 2x2 | E27: 6 or more | F27: 1 | G27: 1 | H27: -- | I27: 1 | J27: 1 | K27: 1
C28: 3 leg | D28: 1x2 | E28: - | F28: 1 | G28: 1 | H28: -- | I28: 1 | J28: 1 | K28: 1
C29: 4 leg | D29: 1x2 | E29: - | F29: 1 | G29: 1 | H29: -- | I29: 1 | J29: 1 | K29: 1
C30: 3 leg | D30: 1x1 | E30: - | F30: 1 | G30: 1 | H30: -- | I30: 1 | J30: 1 | K30: 1
C31: 4 leg | D31: 1x1 | E31: - | F31: 1 | G31: 1 | H31: -- | I31: 1 | J31: 1 | K31: 1
B32: On High Speed (50+ MPH) Urban and Suburban Arterial | C32: 3 leg | D32: - | E32: - | F32: 1 | G32: 1 | H32: -- | I32: 1 | J32: 1 | K32: 1
C33: 4 leg | D33: - | E33: - | F33: 1 | G33: 1 | H33: -- | I33: 1 | J33: 1 | K33: 1
A34: All-Way Stop | B34: On Rural Two Lane Highway | C34: 3 leg | D34: - | E34: - | F34: 1 | G34: 1 | H34: -- | I34: 1 | J34: 1 | K34: 1
C35: 4 leg | D35: - | E35: - | F35: 1 | G35: 1 | H35: -- | I35: 1 | J35: 1 | K35: 1
B36: On Rural Multilane Highway | C36: 3 leg | D36: - | E36: - | F36: 1 | G36: 1 | H36: -- | I36: 1 | J36: 1 | K36: 1
C37: 4 leg | D37: - | E37: - | F37: 1 | G37: 1 | H37: -- | I37: 1 | J37: 1 | K37: 1
B38: On Urban and Suburban Arterial | C38: 3 leg | D38: - | E38: - | F38: 1 | G38: 1 | H38: -- | I38: 1 | J38: 1 | K38: 1
C39: 4 leg | D39: - | E39: - | F39: 1 | G39: 1 | H39: -- | I39: 1 | J39: 1 | K39: 1
A40: Roundabout | B40: 1-lane roundabout | C40: 3 leg | D40: - | E40: - | F40: 1 | G40: 1 | H40: -- | I40: 1 | J40: 1 | K40: 1
C41: 4 leg | D41: - | E41: - | F41: 1 | G41: 1 | H41: -- | I41: 1 | J41: 1 | K41: 1
B42: 2-lane roundabout | C42: 3 leg | D42: - | E42: - | F42: 1 | G42: 1 | H42: -- | I42: 1 | J42: 1 | K42: 1
C43: 4 leg | D43: - | E43: - | F43: 1 | G43: 1 | H43: -- | I43: 1 | J43: 1 | K43: 1
A44: Signalized Restricted Crossing U-Turn (RCUT), also known Superstreet | C44: 3 leg | D44: - | E44: - | F44: 1 | G44: 1 | H44: -- | I44: 1 | J44: 1 | K44: 1
C45: 4 leg | D45: - | E45: - | F45: 1 | G45: 1 | H45: -- | I45: 1 | J45: 1 | K45: 1
A46: Unsignalized Restricted Crossing U-Turn (RCUT), also known as J-Turn | C46: 3 leg | D46: - | E46: - | F46: 1 | G46: 1 | H46: -- | I46: 1 | J46: 1 | K46: 1
C47: 4 leg | D47: - | E47: - | F47: 1 | G47: 1 | H47: -- | I47: 1 | J47: 1 | K47: 1

Sheet Historical
A1: Historical Crash Data Input
A2: Note: In order to use Empirical Bayes (EB), the historical intersection type must be a traffic signal or a minor road stop. Additionally, this alternative must be selected to be included in the analysis, and the historical intersection specified below. Up to 10 years of historical data can be used to perform the EB adjustment.
B5: Is historical crash data available? | D5: No
B7: Number of years available: | D7: 5 | F7: (Up to 10) | H7: First Year Data is available: | K7: 2010
B8: Historical Intx Type: | D8: 4SG
B9: Facility Type | D9: =IF(Input_FacilityType=FacilityType_Label_Rural2Ln,1,IF(Input_FacilityType=FacilityType_Label_RuralMultiLn,2,IF(Input_FacilityType=FacilityType_Label_Urban,IF(Input_1Way2Way=Notes!$A$54,IF(Input_NumMajorLanes=Notes!$A$60,3,4),IF(Input_1Way2Way=Notes!$A$55,5,6))))) -> 3
B11: Historical Crash Counts | D11: Year
D12: =IF($D$7>0,$K$7,"--") -> 2010 | E12: =IF($D$7>1,$K$7+1,"--") -> 2011 | F12: =IF($D$7>2,$K$7+2,"--") -> 2012 | G12: =IF($D$7>3,$K$7+3,"--") -> 2013 | H12: =IF($D$7>4,$K$7+4,"--") -> 2014 | I12: =IF($D$7>5,$K$7+5,"--") -> -- | J12: =IF($D$7>6,$K$7+6,"--") -> -- | K12: =IF($D$7>7,$K$7+7,"--") -> -- | L12: =IF($D$7>8,$K$7+8,"--") -> -- | M12: =IF($D$7>9,$K$7+9,"--") -> -- | N12: Total
A13: =EB_Facility_Type<>3 -> FALSE | B13: Combined | C13: Total | D13: =IF(ISNUMBER(D$12),SUM(D14:D15),"--") -> 0 | E13: =IF(ISNUMBER(E12),SUM(E14:E15),"--") -> 0 | F13: 0 | G13: 0 | H13: 0 | I13: -- | J13: -- | K13: -- | L13: -- | M13: -- | N13: =IF(ISNUMBER(D13),SUM(D13:M13),"--") -> 0 | O13: =IF(AND(A13,COUNTIF(D13:M13,"=0")>0),"One or more years has 0 total crashes.","") -> 
C14: Fatal/Injury | N14: =SUMPRODUCT(D14:M14,--(ISNUMBER($D$12:$M$12))) -> 0
C15: PDO | N15: 0
A16: =EB_Facility_Type=3 -> TRUE | B16: Single-Vehicle | C16: Total | D16: =IF(ISNUMBER(D$12),SUM(D17:D18),"--") -> 0 | E16: =IF(ISNUMBER(E$12),SUM(E17:E18),"--") -> 0 | F16: 0 | G16: 0 | H16: 0 | I16: -- | J16: -- | K16: -- | L16: -- | M16: -- | N16: 0 | O16: =IF(AND(A16,COUNTIF(D16:M16,"=0")>0),"One or more years has 0 total crashes.","") -> One or more years has 0 total crashes.
C17: Fatal/Injury | N17: 0
C18: PDO | N18: 0
A19: =EB_Facility_Type=3 -> TRUE | B19: Multiple-Vehicle | C19: Total | D19: =IF(ISNUMBER(D$12),SUM(D20:D21),"--") -> 0 | E19: =IF(ISNUMBER(E$12),SUM(E20:E21),"--") -> 0 | F19: 0 | G19: 0 | H19: 0 | I19: -- | J19: -- | K19: -- | L19: -- | M19: -- | N19: 0 | O19: =IF(AND(A19,COUNTIF(D19:M19,"=0")>0),"One or more years has 0 total crashes.","") -> One or more years has 0 total crashes.
C20: Fatal/Injury | N20: 0
C21: PDO | N21: 0
A22: TRUE | B22: Veh-Ped | C22: Fatal/Injury | N22: 0
A23: =TRUE -> TRUE | B23: Veh-Bike | C23: Fatal/Injury | N23: 0
B24: Total | C24: All | D24: =IF($A$13,SUM(D14:D15),0)+IF($A$16,SUM(D20:D21),0)+IF($A$16,SUM(D17:D18),0)+IF($A$22,D22,0)+IF($A$23,D23,0) -> 0 | E24: =IF(ISNUMBER(E12),IF($A$13,SUM(E14:E15),0)+IF($A$16,SUM(E20:E21),0)+IF($A$16,SUM(E17:E18),0)+IF($A$22,E22,0)+IF($A$23,E23,0),"--") -> 0 | F24: 0 | G24: 0 | H24: 0 | I24: -- | J24: -- | K24: -- | L24: -- | M24: -- | N24: =IF($A$13,SUM(N14:N15),0)+IF($A$16,SUM(N20:N21),0)+IF($A$16,SUM(N17:N18),0)+IF($A$22,N22,0)+IF($A$23,N23,0) -> 0
B30: Computations Only Below This Point
B39: Empirical Bayes Computations (No Data Entry) | S39: Dispersion Parameters | V39: At-Grade Intersection Facility Type
B40: =IF($D$9<>3,"Combined Collisions","Single-Vehicle Only") -> Single-Vehicle Only | C40: Year | E40: =D$12 -> 2010 | F40: 2011 | G40: 2012 | H40: 2013 | I40: 2014 | J40: -- | K40: -- | L40: -- | M40: -- | N40: -- | O40: Total | V40: Rural Two-Lane Highways | W40: Rural Multilane Highways | X40: Urban/Suburban Arterials w/ 5 or Fewer Lanes | Y40: Urban/Suburban Arterials w/ 6 or More Lanes
C41: Npredicted | D41: Total | F41: =IF(AND(ISNUMBER(E$12),ISNUMBER(NPred_Total)),NPred_Total,"--") -> -- | G41: -- | H41: -- | I41: -- | J41: -- | K41: -- | L41: -- | M41: -- | N41: -- | O41: =IF(ISNUMBER(E44),SUM(E41:N41),"--") -> 0
D42: Fatal/Injury | F42: =IF(AND(ISNUMBER(E$12),ISNUMBER(NPred_FI)),NPred_FI,"--") -> -- | G42: -- | H42: -- | I42: -- | J42: -- | K42: -- | L42: -- | M42: -- | N42: -- | O42: =IF(ISNUMBER(E45),SUM(E42:N42),"--") -> 0
D43: PDO | F43: =IF(AND(ISNUMBER(E$12),ISNUMBER(NPred_PDO)),NPred_PDO,"--") -> -- | G43: -- | H43: -- | I43: -- | J43: -- | K43: -- | L43: -- | M43: -- | N43: -- | O43: =IF(ISNUMBER(E46),SUM(E43:N43),"--") -> 0 | S43: Combined Multi and Single Vehicle | T43: Total | U43: Intx | V43: R2L | W43: RML | X43: U/S Art. | Y43: 2x2 | Z43: 1x2 | AA43: 1x1
C44: Dispersion Parameter (k) | D44: Total | E44: =IF($D$9<>3,VLOOKUP(EB_Intx_Type,U44:AB47,$D$9+1,FALSE),VLOOKUP(EB_Intx_Type,U59:AA62,$D$9+1,FALSE)) -> 0.36 | F44: =IF(AND(ISNUMBER(E$12),ISNUMBER(E44)),E44,"--") -> 0.36 | G44: 0.36 | H44: 0.36 | I44: 0.36 | J44: -- | K44: -- | L44: -- | M44: -- | N44: -- | O44: -- | U44: 3ST | V44: 0.54 | W44: 0.46 | X44: -- | Y44: -- | Z44: -- | AA44: --
D45: Fatal/Injury | E45: =IF($D$9<>3,VLOOKUP(EB_Intx_Type,U49:AB52,$D$9+1,FALSE),VLOOKUP(EB_Intx_Type,U64:AA67,$D$9+1,FALSE)) -> 0.09 | F45: 0.09 | G45: 0.09 | H45: 0.09 | I45: 0.09 | J45: -- | K45: -- | L45: -- | M45: -- | N45: -- | O45: -- | U45: 3SG | V45: -- | W45: -- | X45: -- | Y45: -- | Z45: -- | AA45: --
D46: PDO | E46: =IF($D$9<>3,VLOOKUP(EB_Intx_Type,U54:AB57,$D$9+1,FALSE),VLOOKUP(EB_Intx_Type,U69:AA72,$D$9+1,FALSE)) -> 0.44 | F46: 0.44 | G46: 0.44 | H46: 0.44 | I46: 0.44 | J46: -- | K46: -- | L46: -- | M46: -- | N46: -- | O46: -- | U46: 4ST | V46: 0.24 | W46: 0.494 | X46: -- | Y46: -- | Z46: -- | AA46: --
C47: Weighted Adjustment (w) | D47: Total | E47: =IF(ISNUMBER(E44),1/(1+E44*E41),"--") -> 1 | J47: =IF(ISNUMBER(J44),1/(1+J44*J41),"--") -> -- | K47: =IF(ISNUMBER(K44),1/(1+K44*K41),"--") -> -- | L47: -- | M47: -- | N47: -- | O47: -- | U47: 4SG | V47: 0.11 | W47: 0.277 | X47: -- | Y47: -- | Z47: -- | AA47: --
D48: Fatal/Injury | E48: 1 | J48: -- | K48: -- | L48: -- | M48: -- | N48: -- | O48: -- | T48: Fatal / Injury | U48: Intx | V48: R2L | W48: RML | X48: U/S Art. | Y48: 2x2 | Z48: 1x2 | AA48: 1x1
D49: PDO | E49: 1 | J49: -- | K49: -- | L49: -- | M49: -- | N49: -- | O49: -- | U49: 3ST | V49: -- | W49: 0.569 | X49: -- | Y49: 0.6493506494 | Z49: 2 | AA49: 2
C50: Nexpected | D50: Total | E50: =IF(ISNUMBER(E44),E47*E41+(1-E47)*IF($D$9<>3,D13,D16),IF(ISNUMBER(E51),SUM(E51:E52),"--")) -> 0 | F50: =IF(ISNUMBER(F44),F47*F41+(1-F47)*IF($D$9<3,E13,E16),IF(ISNUMBER(F51),SUM(F51:F52),"--")) ->  | J50: -- | K50: -- | L50: -- | M50: -- | N50: -- | O50: =IF(ISNUMBER(E44),SUM(E50:N50),"--") ->  | U50: 3SG | V50: -- | W50: -- | X50: -- | Y50: 0.518134715 | Z50: 0.9523809524 | AA50: 0.9523809524
D51: Fatal/Injury | E51: =IF(ISNUMBER(E45),E48*E42+(1-E48)*IF($D$9<>3,D14,D17),"--") -> 0 | J51: -- | K51: -- | L51: -- | M51: -- | N51: -- | O51: =IF(ISNUMBER(E45),SUM(E51:N51),"--") ->  | U51: 4ST | V51: -- | W51: 0.742 | X51: -- | Y51: 0.5988023952 | Z51: 0.5319148936 | AA51: 0.5319148936
D52: PDO | E52: 0 | J52: -- | K52: -- | L52: -- | M52: -- | N52: -- | O52: =IF(ISNUMBER(E46),SUM(E52:N52),"--") ->  | U52: 4SG | V52: -- | W52: 0.218 | X52: -- | Y52: 0.5649717514 | Z52: 1.333333333 | AA52: 1.333333333
C53: Nexpected / Npredicted | N53: Total | O53: =IF(AND(ISNUMBER(E41),ISNUMBER(E44)),O50/O41,1) -> 1 | T53: PDO | U53: Intx | V53: R2L | W53: RML | X53: U/S Art. | Y53: 2x2 | Z53: 1x2 | AA53: 1x1
N54: F/I | O54: =IF(AND(ISNUMBER(E42),ISNUMBER(E45)),O51/O42,1) -> 1 | U54: 3ST | V54: -- | W54: -- | X54: -- | Y54: 0.7462686567 | Z54: 1.030927835 | AA54: 1.030927835
N55: PDO | O55: =IF(AND(ISNUMBER(E43),ISNUMBER(E46)),O52/O43,1) -> 1 | U55: 3SG | V55: -- | W55: -- | X55: -- | Y55: 1 | Z55: 0.9009009009 | AA55: 0.9009009009
B56: Multiple-Vehicle Only (When Applicable) | C56: Year | E56: =D$12 -> 2010 | F56: 2011 | G56: 2012 | H56: 2013 | I56: 2014 | J56: -- | K56: -- | L56: -- | M56: -- | N56: -- | O56: Total | U56: 4ST | V56: -- | W56: -- | X56: -- | Y56: 1.136363636 | Z56: 0.9615384615 | AA56: 0.9615384615
C57: Npredicted | D57: Total | F57: =IF(AND(ISNUMBER(E$12),ISNUMBER(E57)),E57,"--") -> -- | G57: -- | H57: -- | I57: -- | J57: -- | K57: -- | L57: -- | M57: -- | N57: -- | O57: =IF(ISNUMBER(E60),SUM(E57:N57),"--") -> 0 | U57: 4SG | V57: -- | W57: -- | X57: -- | Y57: 0.9900990099 | Z57: 2 | AA57: 2
D58: Fatal/Injury | F58: -- | G58: -- | H58: -- | I58: -- | J58: -- | K58: -- | L58: -- | M58: -- | N58: -- | O58: =IF(ISNUMBER(E61),SUM(E58:N58),"--") -> 0 | S58: Single-Vehicle | T58: Total | U58: Intx | V58: R2L | W58: RML | X58: U/S Art. | Y58: 2x2 | Z58: 1x2 | AA58: 1x1
D59: PDO | F59: -- | G59: -- | H59: -- | I59: -- | J59: -- | K59: -- | L59: -- | M59: -- | N59: -- | O59: =IF(ISNUMBER(E62),SUM(E59:N59),"--") -> 0 | U59: 3ST | V59: -- | W59: -- | X59: 1.14 | Y59: -- | Z59: -- | AA59: --
C60: Dispersion Parameter (k) | D60: Total | E60: =IF($D$9=3,VLOOKUP(EB_Intx_Type,U74:AA77,$D$9+1,FALSE),"--") -> 0.39 | F60: 0.39 | G60: 0.39 | H60: 0.39 | I60: 0.39 | J60: -- | K60: -- | L60: -- | M60: -- | N60: -- | O60: -- | U60: 3SG | V60: -- | W60: -- | X60: 0.36 | Y60: -- | Z60: -- | AA60: --
D61: Fatal/Injury | E61: =IF($D$9=3,VLOOKUP(EB_Intx_Type,U79:AA82,$D$9+1,FALSE),"--") -> 0.33 | F61: 0.33 | G61: 0.33 | H61: 0.33 | I61: 0.33 | J61: -- | K61: -- | L61: -- | M61: -- | N61: -- | O61: -- | U61: 4ST | V61: -- | W61: -- | X61: 0.65 | Y61: -- | Z61: -- | AA61: --
D62: PDO | E62: =IF($D$9=3,VLOOKUP(EB_Intx_Type,U84:AA87,$D$9+1,FALSE),"--") -> 0.44 | F62: 0.44 | G62: 0.44 | H62: 0.44 | I62: 0.44 | J62: -- | K62: -- | L62: -- | M62: -- | N62: -- | O62: -- | U62: 4SG | V62: -- | W62: -- | X62: 0.36 | Y62: -- | Z62: -- | AA62: --
C63: Weighted Adjustment (w) | D63: Total | E63: =IF(ISNUMBER(E60),1/(1+E60*E57),"--") -> 1 | F63: =IF(ISNUMBER(F60),1/(1+F60*F57),"--") ->  | J63: -- | K63: -- | L63: -- | M63: -- | N63: -- | O63: -- | T63: Fatal / Injury | U63: Intx | V63: R2L | W63: RML | X63: U/S Art. | Y63: 2x2 | Z63: 1x2 | AA63: 1x1
D64: Fatal/Injury | E64: =IF(ISNUMBER(E61),1/(1+E61*E58),"--") -> 1 | J64: -- | K64: -- | L64: -- | M64: -- | N64: -- | O64: -- | U64: 3ST | V64: -- | W64: -- | X64: -- | Y64: -- | Z64: -- | AA64: --
D65: PDO | E65: =IF(ISNUMBER(E62),1/(1+E62*E59),"--") -> 1 | J65: -- | K65: -- | L65: -- | M65: -- | N65: -- | O65: -- | U65: 3SG | V65: -- | W65: -- | X65: 0.24 | Y65: -- | Z65: -- | AA65: --
C66: Nexpected | D66: Total | E66: =IF(ISNUMBER(E60),E63*E57+(1-E63)*D19,IF(ISNUMBER(E67),SUM(E67:E68),"--")) -> 0 | J66: -- | K66: -- | L66: -- | M66: -- | N66: -- | O66: =IF(ISNUMBER(E60),SUM(E66:N66),"--") ->  | U66: 4ST | V66: -- | W66: -- | X66: -- | Y66: -- | Z66: -- | AA66: --
D67: Fatal/Injury | E67: =IF(ISNUMBER(E61),E64*E58+(1-E64)*D20,"--") -> 0 | J67: -- | K67: -- | L67: -- | M67: -- | N67: -- | O67: =IF(ISNUMBER(E61),SUM(E67:N67),"--") ->  | U67: 4SG | V67: -- | W67: -- | X67: 0.09 | Y67: -- | Z67: -- | AA67: --
D68: PDO | E68: 0 | J68: -- | K68: -- | L68: -- | M68: -- | N68: -- | O68: =IF(ISNUMBER(E62),SUM(E68:N68),"--") ->  | T68: PDO | U68: Intx | V68: R2L | W68: RML | X68: U/S Art. | Y68: 2x2 | Z68: 1x2 | AA68: 1x1
C69: Nexpected / Npredicted | N69: Total | O69: =IF(AND(ISNUMBER(E57),ISNUMBER(E60)),O66/O57,1) -> 1 | U69: 3ST | V69: -- | W69: -- | X69: 0.29 | Y69: -- | Z69: -- | AA69: --
N70: F/I | O70: =IF(AND(ISNUMBER(E58),ISNUMBER(E61)),O67/O58,1) -> 1 | U70: 3SG | V70: -- | W70: -- | X70: 0.53 | Y70: -- | Z70: -- | AA70: --
N71: PDO | O71: =IF(AND(ISNUMBER(E59),ISNUMBER(E62)),O68/O59,1) -> 1 | U71: 4ST | V71: -- | W71: -- | X71: 0.54 | Y71: -- | Z71: -- | AA71: --
B72: Vehicle-Pedestrian | C72: Year | E72: =D$12 -> 2010 | F72: 2011 | G72: 2012 | H72: 2013 | I72: 2014 | J72: -- | K72: -- | L72: -- | M72: -- | N72: -- | O72: Total | U72: 4SG | V72: -- | W72: -- | X72: 0.44 | Y72: -- | Z72: -- | AA72: --
C73: Npredicted | D73: Fatal/Injury | F73: =IF(AND(ISNUMBER(E$12),ISNUMBER(E73)),E73,"--") -> -- | G73: -- | H73: -- | I73: -- | J73: -- | K73: -- | L73: -- | M73: -- | N73: -- | O73: =IF(ISNUMBER(E76),SUM(E73:N73),"--") -> 0 | S73: Multiple-Vehicle | T73: Total | U73: Intx | V73: R2L | W73: RML | X73: U/S Art. | Y73: 2x2 | Z73: 1x2 | AA73: 1x1
C74: Disp. (k) | D74: Fatal/Injury | E74: =IF($D$9>=3,VLOOKUP(EB_Intx_Type,U89:AB92,$D$9+1,FALSE),"--") -> 0.24 | F74: 0.24 | G74: 0.24 | H74: 0.24 | I74: 0.24 | J74: -- | K74: -- | L74: -- | M74: -- | N74: -- | O74: -- | U74: 3ST | V74: -- | W74: -- | X74: 0.8 | Y74: -- | Z74: -- | AA74: --
C75: Weight (w) | D75: Fatal/Injury | E75: =IF(ISNUMBER(E74),1/(1+E74*E73),"--") -> 1 | F75: 1 | G75: 1 | H75: 1 | I75: 1 | J75: -- | K75: -- | L75: -- | M75: -- | N75: -- | O75: -- | U75: 3SG | V75: -- | W75: -- | X75: 0.33 | Y75: -- | Z75: -- | AA75: --
C76: Nexpected | D76: Fatal/Injury | E76: =IF(ISNUMBER(E74),E75*E73+(1-E75)*D22,"--") -> 0 | J76: -- | K76: -- | L76: -- | M76: -- | N76: -- | O76: =IF(AND(ISNUMBER(NPred_Ped),ISNUMBER(E74)),SUM(E76:N76),"--") -> -- | U76: 4ST | V76: -- | W76: -- | X76: 0.4 | Y76: -- | Z76: -- | AA76: --
C77: Nexpected / Npredicted | N77: F/I | O77: =IF(AND(ISNUMBER(E73),ISNUMBER(E74)),O76/O73,1) -> 1 | U77: 4SG | V77: -- | W77: -- | X77: 0.39 | Y77: -- | Z77: -- | AA77: --
B78: Vehicle-Bicylce | C78: Year | E78: =D$12 -> 2010 | F78: 2011 | G78: 2012 | H78: 2013 | I78: 2014 | J78: -- | K78: -- | L78: -- | M78: -- | N78: -- | O78: Total | T78: Fatal / Injury | U78: Intx | V78: R2L | W78: RML | X78: U/S Art. | Y78: 2x2 | Z78: 1x2 | AA78: 1x1
C79: Npredicted | D79: Fatal/Injury | F79: =IF(AND(ISNUMBER(E$12),ISNUMBER(E79)),E79,"--") -> -- | G79: -- | H79: -- | I79: -- | J79: -- | K79: -- | L79: -- | M79: -- | N79: -- | O79: =IF(ISNUMBER(E82),SUM(E79:N79),"--") -> -- | U79: 3ST | V79: -- | W79: -- | X79: 0.69 | Y79: -- | Z79: -- | AA79: --
C80: Disp. (k) | D80: Fatal/Injury | E80: -- | F80: -- | G80: -- | H80: -- | I80: -- | J80: -- | K80: -- | L80: -- | M80: -- | N80: -- | O80: -- | U80: 3SG | V80: -- | W80: -- | X80: 0.3 | Y80: -- | Z80: -- | AA80: --
C81: Weight (w) | D81: Fatal/Injury | E81: =IF(ISNUMBER(E80),1/(1+E80*E79),"--") -> -- | F81: -- | G81: -- | H81: -- | I81: -- | J81: -- | K81: -- | L81: -- | M81: -- | N81: -- | O81: -- | U81: 4ST | V81: -- | W81: -- | X81: 0.48 | Y81: -- | Z81: -- | AA81: --
C82: Nexpected | D82: Fatal/Injury | E82: =IF(ISNUMBER(E80),E81*E79+(1-E81)*E41,"--") -> -- | F82: -- | G82: -- | H82: -- | I82: -- | J82: -- | K82: -- | L82: -- | M82: -- | N82: -- | O82: =IF(ISNUMBER(E80),SUM(E82:N82),"--") -> -- | U82: 4SG | V82: -- | W82: -- | X82: 0.33 | Y82: -- | Z82: -- | AA82: --
C83: Nexpected / Npredicted | N83: F/I | O83: =IF(AND(ISNUMBER(E79),ISNUMBER(E80)),O82/O79,1) -> 1 | T83: PDO | U83: Intx | V83: R2L | W83: RML | X83: U/S Art. | Y83: 2x2 | Z83: 1x2 | AA83: 1x1
U84: 3ST | V84: -- | W84: -- | X84: 0.77 | Y84: -- | Z84: -- | AA84: --
U85: 3SG | V85: -- | W85: -- | X85: 0.36 | Y85: -- | Z85: -- | AA85: --
U86: 4ST | V86: -- | W86: -- | X86: 0.4 | Y86: -- | Z86: -- | AA86: --
U87: 4SG | V87: -- | W87: -- | X87: 0.44 | Y87: -- | Z87: -- | AA87: --
S88: Veh-Pedestrian | T88: Fatal / Injury | U88: Intx | V88: R2L | W88: RML | X88: U/S Art. | Y88: 2x2 | Z88: 1x2 | AA88: 1x1
U89: 3ST | V89: -- | W89: -- | X89: -- | Y89: -- | Z89: -- | AA89: --
U90: 3SG | V90: -- | W90: -- | X90: 0.52 | Y90: 0.52 | Z90: 0.52 | AA90: 0.52
U91: 4ST | V91: -- | W91: -- | X91: -- | Y91: -- | Z91: -- | AA91: --
U92: 4SG | V92: -- | W92: -- | X92: 0.24 | Y92: 0.24 | Z92: 0.24 | AA92: 0.24

Sheet HistoricalRTI (hidden)
A1: Historical Crash Data Input
A2: Note: In order to use Empirical Bayes (EB), the historical intersection type must be a traffic signal or a minor road stop. Additionally, this alternative must be selected to be included in the analysis, and the historical intersection specified below. Up to 10 years of historical data can be used to perform the EB adjustment.
B5: Use historical Emprical Bayes Adjustment? | D5: No
B7: Number of years available: | D7: 2 | F7: (Up to 10) | H7: First Year Data is available: | K7: 2010
B8: Historical Intx Type: | D8: 4SG
B11: Historical Crash Counts | D11: Year
D12: =IF($D$7>0,$K$7,"--") -> 2010 | E12: =IF($D$7>1,$K$7+1,"--") -> 2011 | F12: =IF($D$7>2,$K$7+2,"--") -> -- | G12: =IF($D$7>3,$K$7+3,"--") -> -- | H12: =IF($D$7>4,$K$7+4,"--") -> -- | I12: =IF($D$7>5,$K$7+5,"--") -> -- | J12: =IF($D$7>6,$K$7+6,"--") -> -- | K12: =IF($D$7>7,$K$7+7,"--") -> -- | L12: =IF($D$7>8,$K$7+8,"--") -> -- | M12: =IF($D$7>9,$K$7+9,"--") -> -- | N12: Total
B13: NB Ramp Terminal | C13: Total | D13: =IF(ISNUMBER(D$12),SUM(D14:D15),"--") -> 10 | E13: =IF(ISNUMBER(E12),SUM(E14:E15),"--") -> 10 | F13: -- | G13: -- | H13: -- | I13: -- | J13: -- | K13: -- | L13: -- | M13: -- | N13: =IF(ISNUMBER(D13),SUM(D13:M13),"--") -> 20 | O13: =IF(COUNTIF(D13:M13,"=0")>0,"One or more years has 0 total crashes.","") -> 
C14: Fatal/Injury | D14: 5 | E14: 5 | N14: =SUMPRODUCT(D14:M14,--(ISNUMBER($D$12:$M$12))) -> 10
C15: PDO | D15: 5 | E15: 5 | N15: 10
B16: SB Ramp Terminal | C16: Total | D16: =IF(ISNUMBER(D$12),SUM(D17:D18),"--") -> 12 | E16: =IF(ISNUMBER(E12),SUM(E17:E18),"--") -> 12 | F16: =IF(ISNUMBER(F12),SUM(F17:F18),"--") -> -- | G16: -- | H16: -- | I16: -- | J16: -- | K16: -- | L16: -- | M16: -- | N16: =IF(ISNUMBER(D16),SUM(D16:M16),"--") -> 24 | O16: =IF(COUNTIF(D16:M16,"=0")>0,"One or more years has 0 total crashes.","") -> 
C17: Fatal/Injury | D17: 6 | E17: 6 | N17: 12
C18: PDO | D18: 6 | E18: 6 | N18: 12
B30: Computations Only Below This Point
B40: ="Combined Colisions - "&B13 -> Combined Colisions - NB Ramp Terminal | C40: Year | E40: =D$12 -> 2010 | F40: 2011 | G40: -- | H40: -- | I40: -- | J40: -- | K40: -- | L40: -- | M40: -- | N40: -- | O40: Total | S40: Ramp Terminal Dispersion Parameters
C41: Npredicted | D41: Total | F41: =IF(AND(ISNUMBER(E$12),ISNUMBER(Npred_RTI_Total1)),Npred_RTI_Total1,"--") -> -- | G41: -- | H41: -- | I41: -- | J41: -- | K41: -- | L41: -- | M41: -- | N41: -- | O41: =IF(ISNUMBER(E44),SUM(E41:N41),"--") -> --
D42: Fatal/Injury | F42: =IF(AND(ISNUMBER(E$12),ISNUMBER(Npred_RTI_FI1)),Npred_RTI_FI1,"--") -> -- | G42: -- | H42: -- | I42: -- | J42: -- | K42: -- | L42: -- | M42: -- | N42: -- | O42: =IF(ISNUMBER(E45),SUM(E42:N42),"--") -> 0
D43: PDO | F43: =IF(AND(ISNUMBER(E$12),ISNUMBER(Npred_RTI_PDO1)),Npred_RTI_PDO1,"--") -> -- | G43: -- | H43: -- | I43: -- | J43: -- | K43: -- | L43: -- | M43: -- | N43: -- | O43: =IF(ISNUMBER(E46),SUM(E43:N43),"--") -> 0 | S43: Combined Multi and Single Vehicle | T43: Total | U43: Intx | V43: D4
C44: Dispersion Parameter (k) | D44: Total | E44: =VLOOKUP(EB_RTI_Intx_Type,U44:V47,2,FALSE) -> -- | F44: =IF(AND(ISNUMBER(E$12),ISNUMBER(E44)),E44,"--") -> -- | G44: -- | H44: -- | I44: -- | J44: -- | K44: -- | L44: -- | M44: -- | N44: -- | O44: -- | U44: 3ST | V44: --
D45: Fatal/Injury | E45: =VLOOKUP(EB_RTI_Intx_Type,U49:V52,2,FALSE) -> 0.08695652174 | F45: 0.08695652174 | G45: -- | H45: -- | I45: -- | J45: -- | K45: -- | L45: -- | M45: -- | N45: -- | O45: -- | U45: 3SG | V45: --
D46: PDO | E46: =VLOOKUP(EB_RTI_Intx_Type,U54:V57,2,FALSE) -> 0.1386962552 | F46: 0.1386962552 | G46: -- | H46: -- | I46: -- | J46: -- | K46: -- | L46: -- | M46: -- | N46: -- | O46: -- | U46: 4ST | V46: --
C47: Weighted Adjustment (w) | D47: Total | E47: =IF(AND(ISNUMBER(Npred_RTI_Total1),ISNUMBER(E44)),1/(1+E44*E41),"--") -> -- | F47: -- | G47: -- | H47: -- | I47: -- | J47: -- | K47: -- | L47: -- | M47: -- | N47: -- | O47: -- | U47: 4SG | V47: --
D48: Fatal/Injury | E48: =IF(AND(ISNUMBER(Npred_RTI_FI1),ISNUMBER(E45)),1/(1+E45*E42),"--") -> -- | F48: -- | G48: -- | H48: -- | I48: -- | J48: -- | K48: -- | L48: -- | M48: -- | N48: -- | O48: -- | T48: Fatal / Injury | U48: Intx | V48: D4
D49: PDO | E49: =IF(AND(ISNUMBER(Npred_RTI_PDO1),ISNUMBER(E46)),1/(1+E46*E43),"--") -> -- | F49: -- | G49: -- | H49: -- | I49: -- | J49: -- | K49: -- | L49: -- | M49: -- | N49: -- | O49: -- | U49: 3ST | V49: --
C50: Nexpected | D50: Total | E50: =IF(AND(ISNUMBER(Npred_RTI_Total1),ISNUMBER(E44)),E47*E41+(1-E47)*D13,IF(ISNUMBER(E51),SUM(E51:E52),"--")) -> -- | F50: -- | G50: -- | H50: -- | I50: -- | J50: -- | K50: -- | L50: -- | M50: -- | N50: -- | O50: =IF(ISNUMBER(E44),SUM(E50:N50),"--") -> -- | U50: 3SG | V50: --
D51: Fatal/Injury | E51: =IF(AND(ISNUMBER(Npred_RTI_FI1),ISNUMBER(E45)),E48*E42+(1-E48)*D14,"--") -> -- | F51: -- | G51: -- | H51: -- | I51: -- | J51: -- | K51: -- | L51: -- | M51: -- | N51: -- | O51: =IF(ISNUMBER(E45),SUM(E51:N51),"--") -> 0 | U51: 4ST | V51: 0.3875968992
D52: PDO | E52: =IF(AND(ISNUMBER(Npred_RTI_PDO1),ISNUMBER(E46)),E49*E43+(1-E49)*D15,"--") -> -- | F52: -- | G52: -- | H52: -- | I52: -- | J52: -- | K52: -- | L52: -- | M52: -- | N52: -- | O52: =IF(ISNUMBER(E46),SUM(E52:N52),"--") -> 0 | U52: 4SG | V52: 0.08695652174
C53: Nexpected / Npredicted | N53: Total | O53: =IF(AND(ISNUMBER(E41),ISNUMBER(E44)),O50/O41,1) -> 1 | T53: PDO | U53: Intx | V53: D4
N54: F/I | O54: =IF(AND(ISNUMBER(E42),ISNUMBER(E45)),O51/O42,1) -> 1 | U54: 3ST | V54: --
N55: PDO | O55: =IF(AND(ISNUMBER(E43),ISNUMBER(E46)),O52/O43,1) -> 1 | U55: 3SG | V55: --
B56: ="Combined Colisions - "&B16 -> Combined Colisions - SB Ramp Terminal | C56: Year | E56: =D$12 -> 2010 | F56: 2011 | G56: -- | H56: -- | I56: -- | J56: -- | K56: -- | L56: -- | M56: -- | N56: -- | O56: Total | U56: 4ST | V56: 0.2341920375
C57: Npredicted | D57: Total | F57: =IF(AND(ISNUMBER(E$12),ISNUMBER(Npred_RTI_Total2)),Npred_RTI_Total2,"--") -> -- | G57: -- | H57: -- | I57: -- | J57: -- | K57: -- | L57: -- | M57: -- | N57: -- | O57: =IF(ISNUMBER(E60),SUM(E57:N57),"--") -> -- | U57: 4SG | V57: 0.1386962552
D58: Fatal/Injury | F58: =IF(AND(ISNUMBER(E$12),ISNUMBER(Npred_RTI_FI2)),Npred_RTI_FI2,"--") -> -- | G58: -- | H58: -- | I58: -- | J58: -- | K58: -- | L58: -- | M58: -- | N58: -- | O58: =IF(ISNUMBER(E61),SUM(E58:N58),"--") -> 0
D59: PDO | F59: =IF(AND(ISNUMBER(E$12),ISNUMBER(Npred_RTI_PDO2)),Npred_RTI_PDO2,"--") -> -- | G59: -- | H59: -- | I59: -- | J59: -- | K59: -- | L59: -- | M59: -- | N59: -- | O59: =IF(ISNUMBER(E62),SUM(E59:N59),"--") -> 0
C60: Dispersion Parameter (k) | D60: Total | E60: =VLOOKUP(EB_RTI_Intx_Type,U44:V47,2,FALSE) -> -- | F60: =IF(AND(ISNUMBER(E$12),ISNUMBER(E60)),E60,"--") -> -- | G60: -- | H60: -- | I60: -- | J60: -- | K60: -- | L60: -- | M60: -- | N60: -- | O60: --
D61: Fatal/Injury | E61: =VLOOKUP(EB_RTI_Intx_Type,U49:V52,2,FALSE) -> 0.08695652174 | F61: 0.08695652174 | G61: -- | H61: -- | I61: -- | J61: -- | K61: -- | L61: -- | M61: -- | N61: -- | O61: --
D62: PDO | E62: =VLOOKUP(EB_RTI_Intx_Type,U54:V57,2,FALSE) -> 0.1386962552 | F62: 0.1386962552 | G62: -- | H62: -- | I62: -- | J62: -- | K62: -- | L62: -- | M62: -- | N62: -- | O62: --
C63: Weighted Adjustment (w) | D63: Total | E63: =IF(AND(ISNUMBER(Npred_RTI_Total2),ISNUMBER(E60)),1/(1+E60*E57),"--") -> -- | F63: -- | G63: -- | H63: -- | I63: -- | J63: -- | K63: -- | L63: -- | M63: -- | N63: -- | O63: --
D64: Fatal/Injury | E64: =IF(AND(ISNUMBER(Npred_RTI_FI2),ISNUMBER(E61)),1/(1+E61*E58),"--") -> -- | F64: -- | G64: -- | H64: -- | I64: -- | J64: -- | K64: -- | L64: -- | M64: -- | N64: -- | O64: --
D65: PDO | E65: =IF(AND(ISNUMBER(Npred_RTI_PDO2),ISNUMBER(E62)),1/(1+E62*E59),"--") -> -- | F65: -- | G65: -- | H65: -- | I65: -- | J65: -- | K65: -- | L65: -- | M65: -- | N65: -- | O65: --
C66: Nexpected | D66: Total | E66: =IF(AND(ISNUMBER(Npred_RTI_Total2),ISNUMBER(E60)),E63*E57+(1-E63)*D16,IF(ISNUMBER(E67),SUM(E67:E68),"--")) -> -- | F66: -- | G66: -- | H66: -- | I66: -- | J66: -- | K66: -- | L66: -- | M66: -- | N66: -- | O66: =IF(ISNUMBER(E60),SUM(E66:N66),"--") -> --
D67: Fatal/Injury | E67: =IF(AND(ISNUMBER(Npred_RTI_FI2),ISNUMBER(E61)),E64*E58+(1-E64)*D17,"--") -> -- | F67: -- | G67: -- | H67: -- | I67: -- | J67: -- | K67: -- | L67: -- | M67: -- | N67: -- | O67: =IF(ISNUMBER(E61),SUM(E67:N67),"--") -> 0
D68: PDO | E68: =IF(AND(ISNUMBER(Npred_RTI_PDO2),ISNUMBER(E62)),E65*E59+(1-E65)*D18,"--") -> -- | F68: -- | G68: -- | H68: -- | I68: -- | J68: -- | K68: -- | L68: -- | M68: -- | N68: -- | O68: =IF(ISNUMBER(E62),SUM(E68:N68),"--") -> 0
C69: Nexpected / Npredicted | N69: Total | O69: =IF(AND(ISNUMBER(E57),ISNUMBER(E60)),O66/O57,1) -> 1
N70: F/I | O70: =IF(AND(ISNUMBER(E58),ISNUMBER(E61)),O67/O58,1) -> 1
N71: PDO | O71: =IF(AND(ISNUMBER(E59),ISNUMBER(E62)),O68/O59,1) -> 1

Sheet Results
A1: Federal Highway Administration (FHWA)
A2: Safety Performance for Intersection Control Evaluation Tool
A3: Results | I3: =IF(OR(OR(ISBLANK('Control Strategy Selection'!D5),ISBLANK('Control Strategy Selection'!D13),ISBLANK('Control Strategy Selection'!D14)),IF('Control Strategy Selection'!D4=Label_AnalysisYearType_OpenAndDesign,OR(ISBLANK('Control Strategy Selection'!D6),ISBLANK('Control Strategy Selection'!D15),ISBLANK('Control Strategy Selection'!D16)),FALSE)),"Please complete the Opening/Design Year Inputs and AADTs Before Viewing Results","") -> Please complete the Opening/Design Year Inputs and AADTs Before Viewing Results
A4: Summary of crash prediction results for each alternative
A5: Project Information
A6: Project Name: | B6: =IF(ISBLANK('Project Information'!B3:C3),"",'Project Information'!B3:C3) ->  | E6: Intersection Type | G6: ='Control Strategy Selection'!D3 -> At-Grade Intersections
A7: Intersection: | B7: =IF(ISBLANK('Project Information'!B4:C4),"",'Project Information'!B4:C4) ->  | E7: Opening Year | G7: ='Control Strategy Selection'!D5 -> 0
A8: Agency: | B8: =IF(ISBLANK('Project Information'!B5:C5),"",'Project Information'!B5:C5) ->  | E8: Design Year | G8: ='Control Strategy Selection'!D6 -> 0
A9: Project Reference: | B9: =IF(ISBLANK('Project Information'!B6:C6),"",'Project Information'!B6:C6) ->  | E9: Facility Type | G9: ='Control Strategy Selection'!D8 -> On Urban and Suburban Arterial
A10: City: | B10: =IF(ISBLANK('Project Information'!B7:C7),"",'Project Information'!B7:C7) ->  | E10: Number of Legs | G10: ='Control Strategy Selection'!D9 -> 3-leg
A11: State: | B11: =IF(ISBLANK('Project Information'!B8:C8),"",'Project Information'!B8:C8) ->  | E11: 1-Way/2-Way | G11: ='Control Strategy Selection'!D10 -> 2-way Intersecting 2-way
A12: Date: | B12: =IF(ISBLANK('Project Information'!B9:C9),"",'Project Information'!B9:C9) ->  | E12: # of Major Street Lanes (both directions) | G12: ='Control Strategy Selection'!D11 -> 5 or fewer
A13: Analyst: | B13: =IF(ISBLANK('Project Information'!B10:C10),"",'Project Information'!B10:C10) ->  | E13: Major Street Approach Speed | G13: ='Control Strategy Selection'!D12 -> Less than 55 mph
A14: Crash Prediction Summary
A15: Control Strategy | B15: Crash Type | C15: Opening Year | D15: Design Year | E15: Total Project Life Cycle | F15: Rank | G15: AADT Within Prediction Range? | H15: Source of Prediction | P15: Use Val (open vs design) | R15: Included | S15: Total | T15: FI | U15: FALSE
A16: =Label_AGI_TrafficSignal -> Traffic Signal | B16: Total | F16: =IF(OR(AND(ISNUMBER(C16),C16>0),AND(ISNUMBER(E16),E16>0)),X16,"--") -> -- | G16: =IF(AND('Control Strategy Selection'!O19:P19),"Yes","No") -> Yes | H16: Calibrated SPF | P16: =IF(Input_AnalysisYearType=Notes!$A$11,Results!C16,Results!E16) -> 0 | Q16: =IF(Input_AnalysisYearType=Notes!$A$11,Results!C17,Results!E17) -> 0 | R16: =AND(IsChecked_AGI_TrafficSignal,ISNUMBER(P16)) -> TRUE | S16: =IF(AND(P16>0,R16),P16,99999999999) -> 99999999999 | T16: =IF(AND(Q16>0,R16),Q16,99999999999) -> 99999999999 | U16: =RANK(S16,$S$16:$S$29,1) -> 1 | V16: =RANK(T16,$T$16:$T$29,1) -> 1 | W16: =IF($U$15,U16+0.01*V16,V16+0.01*U16) -> 1.01 | X16: =RANK(W16,$W$16:$W$29,1) -> 1
B17: Fatal & Injury | P17: =IF(Input_AnalysisYearType=Notes!$A$11,Results!C18,Results!E18) -> 0 | Q17: =IF(Input_AnalysisYearType=Notes!$A$11,Results!C19,Results!E19) -> 0 | R17: =AND(IsChecked_AGI_TrafficSignal2,ISNUMBER(P17)) -> TRUE | S17: 99999999999 | T17: 99999999999 | U17: =RANK(S17,$S$16:$S$29,1) -> 1 | V17: =RANK(T17,$T$16:$T$29,1) -> 1 | W17: 1.01 | X17: =RANK(W17,$W$16:$W$29,1) -> 1
A18: =Label_AGI_TrafficSignal&" (Alt)" -> Traffic Signal (Alt) | B18: Total | F18: =IF(OR(AND(ISNUMBER(C18),C18>0),AND(ISNUMBER(E18),E18>0)),X17,"--") -> -- | G18: =IF(AND('Control Strategy Selection'!O20:P20),"Yes","No") -> Yes | H18: Calibrated SPF | P18: =IF(Input_AnalysisYearType=Notes!$A$11,Results!C20,Results!E20) -> 0 | Q18: =IF(Input_AnalysisYearType=Notes!$A$11,Results!C21,Results!E21) -> 0 | R18: =AND(IsChecked_AGI_MinorStop,ISNUMBER(P18)) -> TRUE | S18: 99999999999 | T18: 99999999999 | U18: 1 | V18: 1 | W18: 1.01 | X18: 1
B19: Fatal & Injury | P19: =IF(Input_AnalysisYearType=Notes!$A$11,Results!C22,Results!E22) -> 0 | Q19: =IF(Input_AnalysisYearType=Notes!$A$11,Results!C23,Results!E23) -> 0 | R19: =AND(IsChecked_AGI_AllStop,ISNUMBER(P19)) -> TRUE | S19: 99999999999 | T19: 99999999999 | U19: 1 | V19: 1 | W19: 1.01 | X19: 1
A20: =Label_AGI_MinorStop -> Minor Road Stop | B20: Total | F20: =IF(OR(AND(ISNUMBER(C20),C20>0),AND(ISNUMBER(E20),E20>0)),X18,"--") -> -- | G20: =IF(AND('Control Strategy Selection'!O21:P21),"Yes","No") -> Yes | H20: Calibrated SPF | P20: =IF(Input_AnalysisYearType=Notes!$A$11,Results!C24,Results!E24) -> 0 | Q20: =IF(Input_AnalysisYearType=Notes!$A$11,Results!C25,Results!E25) -> 0 | R20: =AND(IsChecked_AGI_Rdbt1Ln,ISNUMBER(P20)) -> TRUE | S20: 99999999999 | T20: 99999999999 | U20: 1 | V20: 1 | W20: 1.01 | X20: 1
B21: Fatal & Injury | P21: =IF(Input_AnalysisYearType=Notes!$A$11,Results!C26,Results!E26) -> 0 | Q21: =IF(Input_AnalysisYearType=Notes!$A$11,Results!C27,Results!E27) -> 0 | R21: =AND(IsChecked_AGI_Rdbt2Ln,ISNUMBER(P21)) -> TRUE | S21: 99999999999 | T21: 99999999999 | U21: 1 | V21: 1 | W21: 1.01 | X21: 1
A22: =Label_AGI_AllStop -> All Way Stop | B22: Total | F22: =IF(OR(AND(ISNUMBER(C22),C22>0),AND(ISNUMBER(E22),E22>0)),X19,"--") -> -- | G22: N/A | H22: N/A | P22: =IF(Input_AnalysisYearType=Notes!$A$11,Results!C28,Results!E28) -> 0 | Q22: =IF(Input_AnalysisYearType=Notes!$A$11,Results!C29,Results!E29) -> 0 | R22: =AND(IsChecked_AGI_DLT,ISNUMBER(P22)) -> TRUE | S22: 99999999999 | T22: 99999999999 | U22: 1 | V22: 1 | W22: 1.01 | X22: 1
B23: Fatal & Injury | P23: =IF(Input_AnalysisYearType=Notes!$A$11,Results!C30,Results!E30) -> 0 | Q23: =IF(Input_AnalysisYearType=Notes!$A$11,Results!C31,Results!E31) -> 0 | R23: =AND(IsChecked_AGI_MUT,ISNUMBER(P23)) -> TRUE | S23: 99999999999 | T23: 99999999999 | U23: 1 | V23: 1 | W23: 1.01 | X23: 1
A24: =Label_AGI_1LnRdbt -> 1-lane Roundabout | B24: Total | F24: =IF(OR(AND(ISNUMBER(C24),C24>0),AND(ISNUMBER(E24),E24>0)),X20,"--") -> -- | G24: =IF(AND('Control Strategy Selection'!O23:P23),"Yes","No") -> No | H24: Uncalibrated SPF | P24: =IF(Input_AnalysisYearType=Notes!$A$11,Results!C32,Results!E32) -> 0 | Q24: =IF(Input_AnalysisYearType=Notes!$A$11,Results!C33,Results!E33) -> 0 | R24: =AND(IsChecked_AGI_RCUTSig,ISNUMBER(P24)) -> TRUE | S24: 99999999999 | T24: 99999999999 | U24: 1 | V24: 1 | W24: 1.01 | X24: 1
B25: Fatal & Injury | P25: =IF(Input_AnalysisYearType=Notes!$A$11,Results!C34,Results!E34) -> 0 | Q25: =IF(Input_AnalysisYearType=Notes!$A$11,Results!C35,Results!E35) -> 0 | R25: =AND(IsChecked_AGI_RCUTUnsig,ISNUMBER(P25)) -> TRUE | S25: 99999999999 | T25: 99999999999 | U25: 1 | V25: 1 | W25: 1.01 | X25: 1
A26: =Label_AGI_2LnRdbt -> 2-lane Roundabout | B26: Total | F26: =IF(OR(AND(ISNUMBER(C26),C26>0),AND(ISNUMBER(E26),E26>0)),X21,"--") -> -- | G26: =IF(AND('Control Strategy Selection'!O24:P24),"Yes","No") -> No | H26: Uncalibrated SPF | P26: =IF(Input_AnalysisYearType=Notes!$A$11,Results!C36,Results!E36) -> 0 | Q26: =IF(Input_AnalysisYearType=Notes!$A$11,Results!C37,Results!E37) -> 0 | R26: =AND(IsChecked_AGI_GreenT,ISNUMBER(P26)) -> TRUE | S26: 99999999999 | T26: 99999999999 | U26: 1 | V26: 1 | W26: 1.01 | X26: 1
B27: Fatal & Injury | P27: =IF(Input_AnalysisYearType=Notes!$A$11,Results!C38,Results!E38) -> 0 | Q27: =IF(Input_AnalysisYearType=Notes!$A$11,Results!C39,Results!E39) -> 0 | R27: =AND(IsChecked_AGI_Jughandle,ISNUMBER(P27)) -> TRUE | S27: 99999999999 | T27: 99999999999 | U27: 1 | V27: 1 | W27: 1.01 | X27: 1
A28: =Label_AGI_DLT -> Displaced Left Turn (DLT) | B28: Total | F28: =IF(OR(AND(ISNUMBER(C28),C28>0),AND(ISNUMBER(E28),E28>0)),X22,"--") -> -- | G28: N/A | H28: CMF | P28: =IF(Input_AnalysisYearType=Notes!$A$11,Results!C40,Results!E40) -> 0 | Q28: =IF(Input_AnalysisYearType=Notes!$A$11,Results!C41,Results!E41) -> 0 | R28: =AND(IsChecked_AGI_Other1,ISNUMBER(P28)) -> TRUE | S28: 99999999999 | T28: 99999999999 | U28: 1 | V28: 1 | W28: =IF($U$15,U28+0.01*V28,V28+0.01*U28) -> 1.01 | X28: 1
B29: Fatal & Injury | P29: =IF(Input_AnalysisYearType=Notes!$A$11,Results!C42,Results!E42) -> 0 | Q29: =IF(Input_AnalysisYearType=Notes!$A$11,Results!C43,Results!E43) -> 0 | R29: =AND(IsChecked_AGI_Other2,ISNUMBER(P29)) -> TRUE | S29: 99999999999 | T29: 99999999999 | U29: 1 | V29: 1 | W29: 1.01 | X29: 1
A30: =Label_AGI_MUT -> Median U-Turn (MUT) | B30: Total | F30: =IF(OR(AND(ISNUMBER(C30),C30>0),AND(ISNUMBER(E30),E30>0)),X23,"--") -> -- | G30: N/A | H30: CMF
B31: Fatal & Injury
A32: =Label_AGI_RCUTSig -> Signalized RCUT | B32: Total | F32: =IF(OR(AND(ISNUMBER(C32),C32>0),AND(ISNUMBER(E32),E32>0)),X24,"--") -> -- | G32: =IF(OR(NOT(AND('Control Strategy Selection'!O27:P27)),NOT(AND(Range_SRCUT_OAADT_Ratio,Range_SRCUT_DAADT_Ratio))),"No","Yes") -> No | H32: Uncalibrated SPF
B33: Fatal & Injury
A34: =Label_AGI_RCUTUnsig -> Unsignalized RCUT | B34: Total | F34: =IF(OR(AND(ISNUMBER(C34),C34>0),AND(ISNUMBER(E34),E34>0)),X25,"--") -> -- | G34: =IF(AND('Control Strategy Selection'!O28:P28),"Yes","No") -> No | H34: Uncalibrated SPF
B35: Fatal & Injury
A36: =Label_AGI_GreenT -> Continuous Green-T Intersection | B36: Total | F36: =IF(OR(AND(ISNUMBER(C36),C36>0),AND(ISNUMBER(E36),E36>0)),X26,"--") -> -- | G36: N/A | H36: CMF
B37: Fatal & Injury
A38: =Label_AGI_Jughandle -> Jughandle | B38: Total | F38: =IF(OR(AND(ISNUMBER(C38),C38>0),AND(ISNUMBER(E38),E38>0)),X27,"--") -> -- | G38: N/A | H38: CMF
B39: Fatal & Injury
A40: =Label_AGI_Other1 -> Other 1 | B40: Total | F40: =IF(OR(AND(ISNUMBER(C40),C40>0),AND(ISNUMBER(E40),E40>0)),X28,"--") -> -- | G40: N/A | H40: CMF
B41: Fatal & Injury
A42: =Label_AGI_Other2 -> Other 2 | B42: Total | F42: =IF(OR(AND(ISNUMBER(C42),C42>0),AND(ISNUMBER(E42),E42>0)),X29,"--") -> -- | G42: N/A | H42: CMF
B43: Fatal & Injury

Sheet ResultsRTI (hidden)
A1: Federal Highway Administration (FHWA)
A2: Safety Performance for Intersection Control Evaluation Tool
A3: Results | I3: =IF(OR(OR(ISBLANK('Control Strategy Selection'!D5),ISBLANK('Control Strategy Selection'!D13),ISBLANK('Control Strategy Selection'!D14)),IF('Control Strategy Selection'!D4=Label_AnalysisYearType_OpenAndDesign,OR(ISBLANK('Control Strategy Selection'!D6),ISBLANK('Control Strategy Selection'!D15),ISBLANK('Control Strategy Selection'!D16)),FALSE)),"Please complete the Opening/Design Year Inputs and AADTs Before Viewing Results","") -> Please complete the Opening/Design Year Inputs and AADTs Before Viewing Results
A4: Summary of crash prediction results for each alternative
A5: Project Information
A6: Project Name: | B6: =IF(ISBLANK('Project Information'!B3:C3),"",'Project Information'!B3:C3) ->  | E6: Intersection Type | G6: ='Control Strategy Selection'!D3 -> At-Grade Intersections
A7: Intersection: | B7: =IF(ISBLANK('Project Information'!B4:C4),"",'Project Information'!B4:C4) ->  | E7: Opening Year | G7: ='Control Strategy Selection'!D5 -> 0
A8: Agency: | B8: =IF(ISBLANK('Project Information'!B5:C5),"",'Project Information'!B5:C5) ->  | E8: Design Year | G8: ='Control Strategy Selection'!D6 -> 0
A9: Project Reference: | B9: =IF(ISBLANK('Project Information'!B6:C6),"",'Project Information'!B6:C6) ->  | E9: Area Type | G9: =Input_RTI_AreaType -> Urban
A10: City: | B10: =IF(ISBLANK('Project Information'!B7:C7),"",'Project Information'!B7:C7) -> 
A11: State: | B11: =IF(ISBLANK('Project Information'!B8:C8),"",'Project Information'!B8:C8) -> 
A12: Date: | B12: =IF(ISBLANK('Project Information'!B9:C9),"",'Project Information'!B9:C9) -> 
A13: Analyst: | B13: =IF(ISBLANK('Project Information'!B10:C10),"",'Project Information'!B10:C10) -> 
A14: Crash Prediction Summary
A15: Control Strategy | B15: Crash Type | C15: Opening Year | D15: Design Year | E15: Total Project Life Cycle | F15: Rank | G15: AADT Within range? | P15: Use Val (open vs design) | R15: Included | S15: Total | T15: FI | U15: FALSE
A16: =Label_RTI_D4TS -> Conventional Traffic Signal | B16: Total | D16: -- | E16: -- | F16: =IF(OR(AND(ISNUMBER(C16),C16>0),AND(ISNUMBER(E16),E16>0)),X16,"--") -> -- | G16: =IF(AND('Control Strategy Selection'!W61:X61),"Yes","No") -> No | P16: =IF(Input_AnalysisYearType=Notes!$A$11,ResultsRTI!C16,ResultsRTI!E16) -> -- | Q16: =IF(Input_AnalysisYearType=Notes!$A$11,ResultsRTI!C17,ResultsRTI!E17) -> -- | R16: =AND(IsChecked_RTI_D4TS,ISNUMBER(P16)) -> FALSE | S16: =IF(AND(P16>0,R16),P16,99999999999) -> 99999999999 | T16: =IF(AND(Q16>0,R16),Q16,99999999999) -> 99999999999 | U16: =RANK(S16,$S$16:$S$29,1) -> 1 | V16: =RANK(T16,$T$16:$T$29,1) -> 1 | W16: =IF($U$15,U16+0.01*V16,V16+0.01*U16) -> 1.01 | X16: =RANK(W16,$W$16:$W$29,1) -> 1
B17: Fatal & Injury | D17: -- | E17: -- | P17: =IF(Input_AnalysisYearType=Notes!$A$11,ResultsRTI!C18,ResultsRTI!E18) -> -- | Q17: =IF(Input_AnalysisYearType=Notes!$A$11,ResultsRTI!C19,ResultsRTI!E19) -> -- | R17: =AND(IsChecked_RTI_D4TSA,ISNUMBER(P17)) -> FALSE | S17: 99999999999 | T17: 99999999999 | U17: =RANK(S17,$S$16:$S$29,1) -> 1 | V17: =RANK(T17,$T$16:$T$29,1) -> 1 | W17: 1.01 | X17: =RANK(W17,$W$16:$W$29,1) -> 1
A18: =Label_RTI_D4TSA -> Conventional Traffic Signal (Alt) | B18: Total | D18: -- | E18: -- | F18: =IF(OR(AND(ISNUMBER(C18),C18>0),AND(ISNUMBER(E18),E18>0)),X17,"--") -> -- | G18: =IF(AND('Control Strategy Selection'!W62:X62),"Yes","No") -> No | P18: =IF(Input_AnalysisYearType=Notes!$A$11,ResultsRTI!C20,ResultsRTI!E20) -> -- | Q18: =IF(Input_AnalysisYearType=Notes!$A$11,ResultsRTI!C21,ResultsRTI!E21) -> -- | R18: =AND(IsChecked_RTI_DDI,ISNUMBER(P18)) -> FALSE | S18: 99999999999 | T18: 99999999999 | U18: 1 | V18: 1 | W18: 1.01 | X18: 1
B19: Fatal & Injury | D19: -- | E19: -- | P19: =IF(Input_AnalysisYearType=Notes!$A$11,ResultsRTI!C22,ResultsRTI!E22) -> -20999 | Q19: =IF(Input_AnalysisYearType=Notes!$A$11,ResultsRTI!C23,ResultsRTI!E23) -> -20999 | R19: =AND(IsChecked_RTI_SPUI,ISNUMBER(P19)) -> TRUE | S19: 99999999999 | T19: 99999999999 | U19: 1 | V19: 1 | W19: 1.01 | X19: 1
A20: =Label_RTI_DDI -> Crossover Traffic Signal (of DDI) | B20: Total | D20: -- | E20: -- | F20: =IF(OR(AND(ISNUMBER(C20),C20>0),AND(ISNUMBER(E20),E20>0)),X18,"--") -> -- | G20: N/A | P20: =IF(Input_AnalysisYearType=Notes!$A$11,ResultsRTI!C24,ResultsRTI!E24) -> -- | Q20: =IF(Input_AnalysisYearType=Notes!$A$11,ResultsRTI!C25,ResultsRTI!E25) -> -- | R20: =AND(IsChecked_RTI_D4MS,ISNUMBER(P20)) -> FALSE | S20: 99999999999 | T20: 99999999999 | U20: 1 | V20: 1 | W20: 1.01 | X20: 1
B21: Fatal & Injury | D21: -- | E21: -- | P21: =IF(Input_AnalysisYearType=Notes!$A$11,ResultsRTI!C26,ResultsRTI!E26) -> -- | Q21: =IF(Input_AnalysisYearType=Notes!$A$11,ResultsRTI!C27,ResultsRTI!E27) -> -- | R21: =AND(IsChecked_RTI_Rdbt1Ln,ISNUMBER(P21)) -> FALSE | S21: 99999999999 | T21: 99999999999 | U21: 1 | V21: 1 | W21: 1.01 | X21: 1
A22: =Label_RTI_SPUI -> Single-Point Diamond Traffic Signal | B22: Total | C22: -9999 | D22: -9999 | E22: -20999 | F22: =IF(OR(AND(ISNUMBER(C22),C22>0),AND(ISNUMBER(E22),E22>0)),X19,"--") -> -- | G22: N/A | P22: =IF(Input_AnalysisYearType=Notes!$A$11,ResultsRTI!C28,ResultsRTI!E28) -> -- | Q22: =IF(Input_AnalysisYearType=Notes!$A$11,ResultsRTI!C29,ResultsRTI!E29) -> -- | R22: =AND(IsChecked_RTI_Rdbt2Ln,ISNUMBER(P22)) -> FALSE | S22: 99999999999 | T22: 99999999999 | U22: 1 | V22: 1 | W22: 1.01 | X22: 1
B23: Fatal & Injury | C23: -9999 | D23: -9999 | E23: -20999 | P23: =IF(Input_AnalysisYearType=Notes!$A$11,ResultsRTI!C30,ResultsRTI!E30) -> -- | Q23: =IF(Input_AnalysisYearType=Notes!$A$11,ResultsRTI!C31,ResultsRTI!E31) -> -- | R23: =AND(IsChecked_RTI_Other1,ISNUMBER(P23)) -> FALSE | S23: 99999999999 | T23: 99999999999 | U23: 1 | V23: 1 | W23: 1.01 | X23: 1
A24: =Label_RTI_D4MS -> Minor Road (ramp) Stop | B24: Total | D24: -- | E24: -- | F24: =IF(OR(AND(ISNUMBER(C24),C24>0),AND(ISNUMBER(E24),E24>0)),X20,"--") -> -- | G24: =IF(AND('Control Strategy Selection'!W65:X65),"Yes","No") -> No | P24: =IF(Input_AnalysisYearType=Notes!$A$11,ResultsRTI!C32,ResultsRTI!E32) -> -- | Q24: =IF(Input_AnalysisYearType=Notes!$A$11,ResultsRTI!C33,ResultsRTI!E33) -> -- | R24: =AND(IsChecked_RTI_Other2,ISNUMBER(P24)) -> FALSE | S24: 99999999999 | T24: 99999999999 | U24: 1 | V24: 1 | W24: 1.01 | X24: 1
B25: Fatal & Injury | D25: -- | E25: --
A26: =Label_RTI_1LnRdbt -> 1-lane Roundabout | B26: Total | D26: -- | E26: -- | F26: =IF(OR(AND(ISNUMBER(C26),C26>0),AND(ISNUMBER(E26),E26>0)),X21,"--") -> -- | G26: N/A
B27: Fatal & Injury | D27: -- | E27: --
A28: =Label_RTI_2LnRdbt -> 2-lane Roundabout | B28: Total | D28: -- | E28: -- | F28: =IF(OR(AND(ISNUMBER(C28),C28>0),AND(ISNUMBER(E28),E28>0)),X22,"--") -> -- | G28: N/A
B29: Fatal & Injury | D29: -- | E29: --
A30: =Label_RTI_Other1 -> Other 1 | B30: Total | D30: -- | E30: -- | F30: =IF(OR(AND(ISNUMBER(C30),C30>0),AND(ISNUMBER(E30),E30>0)),X23,"--") -> -- | G30: N/A
B31: Fatal & Injury | D31: -- | E31: --
A32: =Label_RTI_Other2 -> Other 2 | B32: Total | D32: -- | E32: -- | F32: =IF(OR(AND(ISNUMBER(C32),C32>0),AND(ISNUMBER(E32),E32>0)),X24,"--") -> -- | G32: N/A
B33: Fatal & Injury | D33: -- | E33: --

Sheet Notes
A1: Notes:
A2: Alternative Selection Sheet
A3: Number of Alternatives
A4: 1
A5: 2
A6: 3
A7: 4
A8: 5
A10: Analysis Year
A11: Opening Year Only
A12: Opening and Design Year
A14: Intersection Type
A15: At-Grade Intersections
A16: Ramp Terminal Intersections
A18: At-Grade Intersctions | J18: Ramp Terminal Intersections | Q18: Predictive Inputs
A19: Traffic Signal | J19: Conventional Traffic Signal | Q19: Yes
A20: Minor Road Stop | J20: Crossover Traffic Signal (of Diverging Diamond Interchange) | Q20: No
A21: All Way Stop | J21: Single-Point Diamond Traffic Signal | Q21: N/A
A22: 1-lane Roundabout | J22: Minor Road (ramp) Stop | Q22: Left Turn Phasing
A23: 2-lane Roundabout | J23: 1-lane Roundabout | Q23: Protected
A24: Displaced Left Turn (DLT) | J24: 2-lane Roundabout | Q24: Permissive
A25: Median U-Turn (MUT) | J25: Freeway Orientation | Q25: Protected/Permissive or Permissive/Protected
A26: Signalized Restricted Crossing U-Turn (RCUT), also known Superstreet | J26: North-South | Q26: N/A
A27: Unsignalized Restricted Crossing U-Turn (RCUT), also known as J-Turn | J27: East-West
A28: Continuous Green-T Intersection
A29: Jughandle | Q29: 0 | R29: 0
Q30: 1 | R30: 1
A31: Facility Type | Q31: 2 | R31: 2
A32: On Rural Two Lane Highway | Q32: 3 | R32: 3
A33: On Rural Multilane Highway | Q33: 4 | R33: 4
A34: On Urban and Suburban Arterial | J34: Type | Q34: N/A | R34: 5
A35: N/A | J35: Three-leg terminals with diagonal exit ramp (D3ex) | R35: 6
J36: Three-leg terminals with diagonal entrance ramp (D3en) | R36: 7
J37: Four-leg terminals with diagonal ramps (D4) | R37: 8
J38: Four-leg terminals at four-quadrant parclo A (A4)
J39: Four-leg terminals at four-quadrant parclo B (B4)
J40: Three-leg terminals at two-quadrant parclo A (A2)
J41: Three-leg terminals at two-quadrant parclo B (B2)
J42: All types
J43: 1-lane roundabout with 3 legs
J44: 1-lane roundabout with 4 legs
J45: 2-lane roundabout with 3 legs
J46: 2-lane roundabout with 4 legs
A47: Number of Legs
A48: 3-leg | J48: Area Type
A49: 4-leg | J49: Urban
A50: N/A | J50: Rural
A53: 1-way/2-way
A54: 2-way Intersecting 2-way | J54: Ramp Terminal "Other" Base Intersections
A55: 1-way Intersecting 2-way | J55: =Label_RTI_D4TS -> Conventional Traffic Signal
A56: 1-way Intersecting 1-way | J56: =Label_RTI_D4TSA -> Conventional Traffic Signal (Alt)
J57: =Label_RTI_D4MS -> Minor Road (ramp) Stop
A59: Number of Lanes
A60: 5 or fewer
A61: 6 or more
A65: Major Street Approach Speed
A66: Less than 55 mph
A67: 55+ mph
A75: Ranking Priority
A76: Total Crashes
A77: Fatal/Injury Crashes

Sheet User Selections
A1: Alternatives
A2: At-Grade Selections
A3: Traffic Signal #1 | B3: =IF('Control Strategy Selection'!B19:C19=Notes!$Q$19,TRUE,FALSE) -> TRUE
A4: Traffic Signal #2 | B4: =IF('Control Strategy Selection'!B20:C20=Notes!$Q$19,TRUE,FALSE) -> TRUE
A5: Minor Road Stop | B5: =IF('Control Strategy Selection'!B21:C21=Notes!$Q$19,TRUE,FALSE) -> TRUE
A6: All Way Stop | B6: =IF('Control Strategy Selection'!B22:C22=Notes!$Q$19,TRUE,FALSE) -> TRUE
A7: 1-lane Roundabout | B7: =IF('Control Strategy Selection'!B23:C23=Notes!$Q$19,TRUE,FALSE) -> TRUE
A8: 2-lane Roundabout | B8: =IF('Control Strategy Selection'!B24:C24=Notes!$Q$19,TRUE,FALSE) -> TRUE
A9: Displaced Left Turn (DLT) | B9: =IF('Control Strategy Selection'!B25:C25=Notes!$Q$19,TRUE,FALSE) -> TRUE
A10: Median U-Turn (MUT) | B10: =IF('Control Strategy Selection'!B26:C26=Notes!$Q$19,TRUE,FALSE) -> TRUE
A11: Signalized Restricted Crossing U-Turn (RCUT), also known Superstreet | B11: =IF('Control Strategy Selection'!B27:C27=Notes!$Q$19,TRUE,FALSE) -> TRUE
A12: Unsignalized Restricted Crossing U-Turn (RCUT), also known as J-Turn | B12: =IF('Control Strategy Selection'!B28:C28=Notes!$Q$19,TRUE,FALSE) -> TRUE
A13: Continuous Green-T Intersection | B13: =IF('Control Strategy Selection'!B29:C29=Notes!$Q$19,TRUE,FALSE) -> TRUE
A14: Jughandle | B14: =IF('Control Strategy Selection'!B30:C30=Notes!$Q$19,TRUE,FALSE) -> TRUE
A15: Other (Please Specify) | B15: =IF('Control Strategy Selection'!B31:C31=Notes!$Q$19,TRUE,FALSE) -> TRUE
A16: Other (Please Specify) | B16: =IF('Control Strategy Selection'!B32:C32=Notes!$Q$19,TRUE,FALSE) -> TRUE
A20: Ramp Terminal Interchanges
A21: =Label_RTI_D4TS -> Conventional Traffic Signal | B21: =IF('Control Strategy Selection'!B61:C61=Notes!$Q$19,TRUE,FALSE) -> TRUE
A22: =Label_RTI_D4TSA -> Conventional Traffic Signal (Alt) | B22: =IF('Control Strategy Selection'!B62:C62=Notes!$Q$19,TRUE,FALSE) -> TRUE
A23: =Label_RTI_DDI -> Crossover Traffic Signal (of DDI) | B23: =IF('Control Strategy Selection'!B63:C63=Notes!$Q$19,TRUE,FALSE) -> TRUE
A24: =Label_RTI_SPUI -> Single-Point Diamond Traffic Signal | B24: =IF('Control Strategy Selection'!B64:C64=Notes!$Q$19,TRUE,FALSE) -> TRUE
A25: =Label_RTI_D4MS -> Minor Road (ramp) Stop | B25: =IF('Control Strategy Selection'!B65:C65=Notes!$Q$19,TRUE,FALSE) -> TRUE
A26: =Label_RTI_1LnRdbt -> 1-lane Roundabout | B26: =IF('Control Strategy Selection'!B66:C66=Notes!$Q$19,TRUE,FALSE) -> TRUE
A27: =Label_RTI_2LnRdbt -> 2-lane Roundabout | B27: =IF('Control Strategy Selection'!B67:C67=Notes!$Q$19,TRUE,FALSE) -> TRUE
A28: =Label_RTI_Other1 -> Other 1 | B28: =IF('Control Strategy Selection'!B68:C68=Notes!$Q$19,TRUE,FALSE) -> TRUE
A29: =Label_RTI_Other2 -> Other 2 | B29: =IF('Control Strategy Selection'!B69:C69=Notes!$Q$19,TRUE,FALSE) -> TRUE
B42: Major | C42: Allowable | D42: Minor | E42: Open | G42: Design
A43: RCUT AADT Ratios | B43: Limit | C43: Ratio | D43: Limit | E43: In Range | F43: Under ratio | G43: In Range | H43: Under ratio
A44: This table is used to verify whether the ratio of major to minor AADT falls within the allowable ratios appropriate for the RCUT SPF methodology. | B44: 5000 | C44: =D44/B44 -> 1.06 | D44: 5300 | E44: =AND(Input_Base_OAADTMajor>0,Input_Base_OAADTMajor<=B44) -> FALSE | F44: =IF(E44,Input_Base_OAADTMinor/Input_Base_OAADTMajor<C44, TRUE) -> TRUE | G44: =AND(Input_Base_DAADTMajor>0,Input_Base_DAADTMajor<=B44) -> FALSE | H44: =IF(G44,Input_Base_DAADTMinor/Input_Base_DAADTMajor<C44, TRUE) -> TRUE
B45: 15000 | C45: =D45/B45 -> 0.8246666667 | D45: 12370 | E45: =AND(Input_Base_OAADTMajor>B44,Input_Base_OAADTMajor<=B45) -> FALSE | F45: TRUE | G45: =AND(Input_Base_DAADTMajor>B44,Input_Base_DAADTMajor<=B45) -> FALSE | H45: TRUE
B46: 25000 | C46: 0.642 | D46: 16050 | E46: FALSE | F46: TRUE | G46: FALSE | H46: TRUE
B47: 35000 | C47: 0.5 | D47: 17500 | E47: FALSE | F47: TRUE | G47: FALSE | H47: TRUE
B48: 45000 | C48: 0.3895555556 | D48: 17530 | E48: FALSE | F48: TRUE | G48: FALSE | H48: TRUE
B49: 55000 | C49: 0.3034545455 | D49: 16690 | E49: FALSE | F49: TRUE | G49: FALSE | H49: TRUE
B50: 65000 | C50: 0.2363076923 | D50: 15360 | E50: FALSE | F50: TRUE | G50: FALSE | H50: TRUE

Sheet Labels
A3: Control Strategies
A4: At-Grade Selections
A5: Traffic Signal
A6: Minor Road Stop
A7: All Way Stop
A8: 1-lane Roundabout
A9: 2-lane Roundabout
A10: Displaced Left Turn (DLT)
A11: Median U-Turn (MUT)
A12: Signalized RCUT
A13: Unsignalized RCUT
A14: Continuous Green-T Intersection
A15: Jughandle
A16: ='Control Strategy Selection'!A31 -> Other 1
A17: ='Control Strategy Selection'!A32 -> Other 2
A19: Ramp Terminal Interchanges
A20: Conventional Traffic Signal
A21: Crossover Traffic Signal (of Diverging Diamond Interchange)
A22: Single-Point Diamond Traffic Signal
A23: Minor Road (ramp) Stop
A24: 1-lane Roundabout
A25: 2-lane Roundabout
A33: Facility Types
A34: On Rural Two Lane Highway
A35: On Rural Multilane Highway
A36: On Urban and Suburban Arterial
A37: On High Speed (50+ MPH) Urban and Suburban Arterial
A44: Analysis Year
A45: Opening Year Only
A46: Opening and Design Year
D51: FALSE | E51: =NOT(D51) -> TRUE
A52: Pedestrian Activity | D52: 4-Leg | E52: 3-Leg
A53: =C53&" (" & IF($D$51,D53,E53) & ")" -> High (1700) | C53: High | D53: 3200 | E53: 1700 | F53: 4 | G53: =IF(LEFT(Input_TrafficSignal_PedActivity,F53)=C53,TRUE, FALSE) -> FALSE | H53: =IF(LEFT(Input_TrafficSignal2_PedActivity,F53)=C53,TRUE, FALSE) -> FALSE
A54: =C54&" (" & IF($D$51,D54,E54) & ")" -> Med High (750) | C54: Med High | D54: 1500 | E54: 750 | F54: 8 | G54: FALSE | H54: FALSE
A55: Medium (400) | C55: Medium | D55: 700 | E55: 400 | F55: 6 | G55: FALSE | H55: FALSE
A56: Med Low (120) | C56: Med Low | D56: 240 | E56: 120 | F56: 7 | G56: FALSE | H56: FALSE
A57: Low (20) | C57: Low | D57: 50 | E57: 20 | F57: 3 | G57: TRUE | H57: TRUE
A58: =C58 -> Other - Enter Below | C58: Other - Enter Below | G58: FALSE | H58: FALSE
A62: High (1,700)
A63: Medium High (750)
A64: Medium (400)
A65: Medium Low (120)
A66: Low (20)
A67: Other - Enter Below
A78: Exit ramp right turn control
A79: Merge/Free Flow
A80: Signal/Stop/yield-controlled
A82: Effective number of lanes serving exit ramp
A83: 1
A84: 2
A85: 3
A86: 4
A88: # of driveways (or public street approaches) on the crossroad leg outside of the interchange
A89: 0
A90: 1
A91: 2
A92: 3
A93: 4

Sheet Changelog
A1: FDOT SPICE Tool Changelog
A3: Date | C3: Version # | D3: Description
A5: 2019-04-23 | C5: 3.1 | D5: Added new safety performance function (SPF) computations for signalized and unsignalized restricted crossing u-turns (RCUTS). These methods replaced the previous crash modification factor (CMF) based approach.
A8: 2015-07-01 | C8: 3.2 | D8: Follow-up update to the Signalized RCUT methodology. These updates provided new coefficients for the safety performance function and improved AADT range and ratio limits to relflect the removal of high AADT outlier RCUT sample data sites.
A11: 2019-07-15 | C11: 3.3 | D11: Small bug fix to remove the deprecated display-only RCUT crash modification factors in the Calibration tab, as well as include new optional inputs to apply a calibration factor to the safety performance functions for signalized and unsignalized RCUTs.
